{"text_format":"1","workbook":"xlsx","n_sheets":7,"sheets":["Master Data Sheet","Year 7 Presentation Sheet","Year 8 Presentation Sheet","Year 9 Presentation Sheet","Year 10 Presentation Sheet","Year 11 Presentation Sheet","Year 12 Presentation Sheet"],"not_rendered":{"charts":0,"images":4,"macros":1,"external_links":0,"defined_names":6,"comments":0,"pivot_tables":12},"unopened":[],"bounds":{"document_bytes":16777216,"sheet_cells":100000,"rows_first":2000,"rows_last":500,"rows_between":2000,"halvings":0,"cell_chars":16384,"cell_head_chars":4096},"cells_cut":0,"cells_raw":0,"read":"whole","date_system":"1900"}

{"sheet":"Master Data Sheet","index":0,"n_rows":124,"n_cols":38,"rows_kept":124,"cut":false,"hidden":true,"merged":[[0,0,3,0],[5,2,6,2],[1,2,2,5],[5,8,6,8],[26,0,27,0],[28,0,71,0],[72,0,76,0],[5,32,6,32],[5,14,6,14],[5,20,6,20],[5,26,6,26]]}
["Quick Guide \n",null,"Master data sheet ","(scroll right for additional year level data sheets)"]
[null,null,"An example is provided in year 8 Master data sheet and presentation sheet for presentation purposes ONLY, please clear the data in the Master Data Sheet prior to use."]
[]
[]
["Checklist\n\n\n\n"]
["g Clear the examples in Year 8 and fill in the inclusion tables (general items and ",null,"Year 7 ",null,null,null,null,null,"Year 8",null,null,null,null,null,"Year 9",null,null,null,null,null,"Year 10",null,null,null,null,null,"Year 11",null,null,null,null,null,"Year 12"]
["subject resources) keeping formatting consistency (e.g. capital letters and spacing)"]
["g In the General items column just type 'General items'"]
["g Excel has a default setting to automatically fill formulas to create calculated",null,"General Items","Resource","Type of Resource","Acquisition cost","Value (to parent)","Column1","General Items","Resource","Type of Resource","Acquisition cost","Value (to parent)","Column1","General Items","Resource","Type of Resource","Acquisition cost","Value (to parent)","Column1","General Items","Resource","Type of Resource","Acquisition cost","Value (to parent)",null,"General Items","Resource","Type of Resource","Acquisition cost","Value (to parent)",null,"General Items","Resource","Type of Resource","Acquisition cost","Value (to parent)"]
["    columns in an excel table.  If you don't want Excel to automatically fill formulas",null,"General Items","Administration of Student Resource Scheme","Used",0,10,null,"General Items","Administration of Student Resource Scheme","Used",0,10,null,"General Items","Administration of Student Resource Scheme","Used",0,10,null,"General Items","Administration of Student Resource Scheme","Used",0,10,null,"General Items","Administration of Student Resource Scheme","Used",0,10,null,"General Items","Administration of Student Resource Scheme","Used",0,10]
["    to create calculated columns, you can turn this option off by following the steps",null,"General Items","Printing Credit","Used",20,11,null,"General Items","Printing Credit","Used",11,11,null,"General Items","Printing Credit","Used",11,11,null,"General Items","Printing Credit","Used",11,11,null,"General Items","Reprographics to complement classroom texts","Used",40,40]
["    below:",null,"General Items","Reprographics to complement classroom texts","Used",40,40,61,"General Items","Reprographics to complement classroom texts","Used",40,40,61,"General Items","Reprographics to complement classroom texts","Used",40,40,61,"General Items","Reprographics to complement classroom texts","Used",40,40,null,"General Items","Printing Credit","Used",20,20]
["         g On the File tab, click Options.",null,null,null,null,null,null,null,null,null,null,null,null,null,"Subject","Resource","Type of Resource","Acquisition cost","Value (to parent)","Column1","Subject","Resource","Type of Resource","Acquisition cost","Value (to parent)","Column1",null,null,null,null,null,null,"General Items","Reprographics to complement classroom texts","Used",40,40]
["         g Click Proofing. ",null,"Subject","Resource","Type of Resource","Acquisition cost","Value (to parent)","Column1","Subject","Resource","Type of Resource","Acquisition cost","Value (to parent)","Column1","Agricultural Science","Consumables and Classroom resources","Used",7.75,7.75,null,"Science B Biol. Marine Science, Physics","Classroom consumables","Used",15,15,null," Subject","Resource","Type of Resource","Acquisition cost","Value (to parent)","Column1","General Items","Printing Credit","Used",20,20]
["         g Under AutoCorrect Options, click AutoCorrect Options.",null,"Computer Education","Classroom Consumables","Used",7.75,7.75,null,"Business Studies","Consumables and Classroom resources","Used",40,-21,null,"Agricultural Science","Subsidy from SRS","Owned",null,-7.75,7.75,"Science B Biol. Marine Science, Physics","Subsidy from SRS","Owned",null,-15,15,"Accounting","Reprographics to complement classroom text","Owned",40,40]
["         g Click the AutoFormat As You Type tab.",null,"Computer Education","Subsidy from SRS","Owned",null,-7.75,7.75,"Business Studies","Subsidy from SRS","Owned",null,-21,21,"Business Studies","Consumables and Classroom resources","Used",40,-21,null,"Cert II in Business","Consumables and Classroom resources","Used",15,15,null,"Accounting","Text - Accounting Concepts & Applications","Hired",75,15]
["              create calculated columns check box to turn this option off.",null,"Dance","Classroom Consumables","Used",10,10,null,"Dance","Textbook - Dance count me in","Hired",51.95,17,null,"Business Studies","Subsidy from SRS","Owned",null,-21,21,"Cert II in Business","Subsidy from SRS","Owned",null,-15,15,"Accounting","Subsidy from SRS","Owned",null,-55,55,"Subject","Resource","Type of Resource","Acquisition cost","Value (to parent)","Column1"]
["g Remove blank table rows in the inclusion table (highlight the blank rows, right",null,"Dance","Subsidy from SRS","Owned",null,-10,10,"Dance","Consumables and Classroom resources","Used",20,4,null,"Dance","Textbook - Dance count me in","Hired",51.95,17,null,"Cert II in Dance","Consumables and Classroom resources","Used",40,7,null,"Agricultural Practices","Consumables and Classroom resources","Used",7.75,7.75,null,"Accounting","Reprographics to complement classroom text","Owned",40,40]
["    click and press delete on the menu, then table rows)",null,"Digital Technologies","Classroom Consumables","Used",6,6,null,"Dance","Subsidy from SRS","Owned",null,-21,21,"Dance","Consumables and Classroom resources","Used",20,4,null,"Cert II in Dance","Subsidy from SRS","Owned",null,-7,7,"Agricultural Practices","Subsidy from SRS","Owned",null,-7.75,7.75,"Accounting","Text - Accounting Concepts & Applications","Hired",75,15]
["g Open the Presentation sheet of the cohort you are working on",null,"Digital Technologies","Subsidy from SRS","Owned",null,-6,6,"Design","Consumables and Classroom resources","Used",20,4,null,"Dance","Subsidy from SRS","Owned",null,-21,21,"Cert II in Rural Operations","Classroom consumables","Used",40,20,null,"Aquatic Practices","Consumables and Resources","Used",6,6,null,"Accounting","Subsidy from SRS","Owned",null,-55,55]
["g Insert your school banner in the header (optional)",null,"Drama","Classroom Consumables","Used",7.75,7.75,null,"Design","Subsidy from SRS","Owned",null,-4,4,"Design","Consumables and Classroom resources","Used",20,4,null,"Cert II in Rural Operations","Subsidy from SRS","Owned",null,-20,20,"Aquatic Practices","Subsidy from SRS","Owned",null,-6,null,"Agricultural Practices","Consumables and Classroom resources","Used",7.75,7.75]
["g Fill in the boxes in on the control panel on the presentation sheet",null,"Drama","Subsidy from SRS","Owned",null,-7.75,7.75,"Digital Technologies","Adobe Software Licence","Hired",10,10,null,"Design","Subsidy from SRS","Owned",null,-4,4,"Cert II in Visual Arts","Consumables and Classroom resources","Used",50,50,50,"Biology","Oxford Biology  Unitsd 1 & 2","Hired",51,17,null,"Agricultural Practices","Subsidy from SRS","Owned",null,-7.75,7.75]
["g Refresh the tables using the grey button on the control panel",null,"English","Pearson Text Book 7","Hired",34.950000000000003,5,null,"Digital Technologies","Consumables and Classroom resources","Used",45,11,null,"Digital Technologies","Adobe Software Licence","Hired",10,10,null,"Certificate II in Furniture Making","Consumables and resources","Hired",40,40,null,"Biology","Consumables and Resources","Used",55,25,null,"Aquatic Practices","Consumables and Resources","Used",6,6]
["g Check the print preview and amend the print area if necessary",null,"English","Grammar and Language workbooks","Owned",16.25,16.25,null,"Digital Technologies","Subsidy from SRS","Owned",null,-21,21,"Digital Technologies","Consumables and Classroom resources","Used",45,11,null,"Certificate II in Furniture Making","Workshop Consumables - Student Projects","Owned",150,150,null,"Biology","Reprographics","Owned",18,18,null,"Aquatic Practices","Subsidy from SRS","Owned",null,-6,6]
["g Print the Year level data sheet using the Print button at the top right of the table",null,"English","Class sets of Novels/Dictionaries-Paper Planes","Hired",35,10,null,"English","Class sets of Novels/Dictionaries -  Nanberry($19.95)","Hired",35,10,null,"Digital Technologies","Subsidy from SRS","Owned",null,-21,21,"Certificate II in Furniture Making","Subsidy from SRS","Owned",null,-40,40,"Biology","Subsidy fom SRS","Owned",null,-60,60,"Biology","Oxfords Yr 12   Units 3 & 4 ","Hired",51,17]
["g Print the Presentation sheet to a PDF using the button on the control panel",null,"English","Classroom Consumables","Used",5,5,null,"English","Pearson Text Book 8","Hired",40,5,null,"English","Pearson Text Yr 9 and novels","Hired",54.95,15,null,"Certificate II in Tourism","Consumables and resources","Hired",40,40,null,"Cert II in Kitchen Operations","Food supplies","Used",150,150,null,"Biology","Consumables and Resources","Used",55,25]
[null,null,"English","Subsidy from SRS","Owned",null,-36.25,36.25,"English","Gramar & language booklets","Owned",16.25,16.25,null,"English","Grammar and Language booklet","Used",20,5,null,"Certificate II in Tourism","Food costs","Owned",150,150,null,"Cert II in Kitchen Operations","Food Consumables including takeaway containers","Owned",40,40,null,"Biology","Reprographics","Owned",18,18]
[null,null,"English Accelerated ","Pearson Text Book 8 ","Hired",34.950000000000003,5,null,"English","Class consumables","Used",15,5,null,"English","Homework Booklet","Used",10,10,null,"Certificate II in Tourism","Subsidy from SRS","Owned",null,-40,40,"Cert II in Kitchen Operations","Reprographics to complement classroom texts","Owned",10,10,null,"Biology","Subsidy fom SRS","Owned",null,-60,60]
["Key Terms and Definitions\n\nAcquisition cost\nThis column demonstrates to parents the price to acquire (either the school's cost to acquire or the cost that the parent would incur to acquire) the item/s that are included in the SRS.\n\nFor single item resources, e.g. textbooks, paint etc. the acquisition cost can be either the cost to purchase and freight the items or the cost for a parent to purchase the same item. \n\nFor grouped items, such as \"art supplies\", to demonstrate the cost benefit to parents it would be in a schools best interest to use the list of supplies that non-participating parents would receive and determine the cost that a parent would be required to outlay for these items\n\nSubject\nThe name of the class such as English or Maths that the resource is used in.\n\nGeneral items \nThese SRS inclusions are not subject specific items and apply to all students. General items may include (though are not exclusive to) a student ID card, a printing allowance, a school diary and an administration fee. Under the general items column just enter 'General items'\n\nMaster data sheet \nThis is the worksheet where you will enter the SRS inclusions data. This is the sheet where your SRS information is stored.\n\nPresentation sheet\nThis is the worksheet that will be used to present SRS inclusions to parents. The SRS inclusion data in this sheet is fed from the Master data sheet.\n\nResource\nThe name of each individual resource or grouping of resources (one per line) associated with the subject/general item in the left hand column.\n\nType of resource\nThis describes whether the SRS inclusion is hired to the student (e.g. a textbook), owned by the student (e.g. a student diary) or used by the student (e.g. paint). \n\nValue (to parent)\nThis column demonstrates the direct value that the SRS provides to parents.\n\nFor single item resources, e.g. textbooks, this column will be the \"acquisition cost\" divided by the number of years that the resource will be hired to students.\n\nFor grouped items, such as \"art supplies\" this column should reflect the cost as purchased by the school divided by the number of students in the cohort to determine a price per student cost.  \n",null,"English Accelerated ","Grammar and Language workbooks","Owned",16.25,16.25,null,"English","Subsidy for SRS","Owned",null,-36.25,36.25,"English","Classroom Consumables","Used",25,10,null,"Design","Classroom consumables","Used",5,5,null,"Cert II in Kitchen Operations","Subsidy for SRS","Owned",null,-50,50,"Cert II inSkills for Work & Vocational","Certificate II provided internally by staff - no cost","Owned",0,0]
[null,null,"English Accelerated ","Class sets of Novels/Dictionaries (Nanberry)","Hired",35,10,null,"English Accelerated ","Class sets of Novels/Dictionaries -  Nanberry($19.95)","Hired",35,29,null,"English","Subsidy from SRS","Owned",null,-40,40,"Design","Subsidy from SRS","Owned",null,-5,5,"Cert II inSkills for Work & Vocational","This course is delivered through an external Provider -  Enrolment into this course is subject to all outstanding fees being paid in full or a payment plan in place.The course fee must be paid by 01st April.","Owned",0,0,null,"Certificate III Fitness (Sport & Rec) ","Certficiate for Years 11 & 12 - This course is delivered through an external Provider -  Enrolment into this course is subject to all outstanding fees being paid in full or a payment plan in place.The course fee must be paid by 01st April.","Owned",330,330]
[null,null,"English Accelerated ","Classroom Consumables","Used",5,5,null,"English Accelerated ","Pearson Text Book 8","Hired",40,5,null,"English Acceleration","Pearson Text Yr10 and novels","Hired",54.95,15,null,"Cert II Digital Media &  Technologies","Adobe Software Licence","Hired",10,10,null,"Certificate III Fitness (Sport & Rec) ","Certficiate for Years 11 & 12 - This course is delivered through an external Provider -  Enrolment into this course is subject to all outstanding fees being paid in full or a payment plan in place.The course fee must be paid by 01st April.","Owned",330,330,null,"Chemistry","Oxford Chemistry  Units 1&2","Hired",89.4,30]
[null,null,"English Accelerated ","Subsidy from SRS","Owned",null,-36.25,36.25,"English Accelerated ","Gramar & language booklets","Owned",16.350000000000001,16.350000000000001,null,"English Acceleration","Grammar and Language booklet","Used",20,5,null,"Cert II Digital Media &  Technologies","Consumables and Classroom resources","Used",60,14,null,"Chemistry","Oxford Chemistry  Units 1&2","Hired",89.4,30,null,"Chemistry","Reprographics to complement classroom texts","Owned",20,20]
[null,null,"English Foundation","Grammar and Language workbooks","Owned",16.25,16.25,null,"English Accelerated ","Class consumables","Used",15,5,null,"English Acceleration","Homework booklet","Used",10,10,null,"Cert II Digital Media &  Technologies","Subsidy from SRS","Owned",null,-24,24,"Chemistry","Reprographics to complement classroom texts","Owned",20,20,null,"Chemistry","Subsidy from SRS","Owned",null,-50,50]
[null,null,"English Foundation","Class sets of Novels - Ned Kelly","Hired",35,10,null,"English Accelerated ","Subsidy for SRS","Owned",null,-55.35,55.35,"English Acceleration","Classroom Consumables","Used",25,10,null,"Drama","Textbook - Dramawise","Hired",49.95,16,null,"Chemistry","Subsidy from SRS","Owned",null,-50,50,"Design","Consumables and Resources","Used",10,10]
[null,null,"English Foundation","Classroom Consumables","Used",5,5,null,"English Foundation","Class sets of novels","Hired",30,10,null,"English Acceleration","Subsidy from SRS","Owned",null,-40,40,"Drama","Consumables and Classroom resources","Used",45,8,null,"Dance in Practice","Consumables and Resources","Used",10,10,null,"Design","Subsidy from SRS ","Owned",null,-10,10]
[null,null,"English Foundation","Subsidy from SRS","Owned",null,-31.25,36.25,"English Foundation","Classroom Consumables","Used",25,10,null,"English Foundation","Class sets of novels","Hired",30,10,null,"Drama","Subsidy from SRS","Owned",null,-24,24,"Dance in Practice","Subsidy from SRS","Owned",null,-10,10,"Digital Solutions","Adobe Software Licence","Hired",10,10]
[null,null,"Hospitality","Food - consumables ","Used",40,40,null,"English Foundation","Subsidy from SRS","Owned",null,-20,20,"English Foundation","Classroom Consumables","Used",25,10,null,"English","Pearson Yr 10 ","Hired",35,12,null,"Design","Consumables and Resources","Used",10,10,null,"Digital Solutions","Consumables and Classroom resources","Used",60,14]
[null,null,"Hospitality","Subsidy from SRS","Owned",null,-20,20,"Geography","Pearson Geography","Hired",59.95,20,null,"English Foundation","Subsidy from SRS","Owned",null,-20,20,"English","Classroom Consumables","Used",9,9,null,"Design","Subsidy from SRS ","Owned",null,-10,10,"Digital Solutions","Subsidy from SRS","Owned",null,-24,24]
[null,null,"Humanities & Social Sciences","Retroactive 7 - History, Pearson 7 Geography","Hired",104,20,null,"Geography","Jacaranda Atlas","Hired",65,12,null,"Geography","Qld Geography","Hired",45,15,null,"English","Grammar and Language booklet","Used",20,5,null,"Digital Solutions","Adobe Software Licence","Hired",10,10,null,"Early Childhood Studies","Consumables and Resources","Used",10,10]
[null,null,"Humanities & Social Sciences","Retroactive 7 & Pearson Workbook","Hired",40,8,null,"Geography","Classroom Consumables","Used",5,5,null,"Geography","Jacaranda Atlas","Hired",50,10,null,"English","Novels","Hired",50,10,null,"Digital Solutions","Consumables and Classroom resources","Used",60,14,null,"Early Childhood Studies","Subsidy from SRS","Owned",null,-10,10]
[null,null,"Humanities & Social Sciences","Subsidy from SRS","Owned",null,-28,28,"Geography","Subsidy","Owned",null,-37,37,"Geography","Classroom Consumables","Used",10,10,null,"English","Subsidy from SRS","Owned",null,-36,36,"Digital Solutions","Subsidy from SRS","Owned",null,-24,24,"Engineering Skills","Workshop Consumables - Student Projects","Owned",150,150]
[null,null,"Industrial Technology & Design","Workshop Consumables - Student Projects","Owned",40,40,null,"History","Nelson Connect with History 8","Hired",20,6,null,"Geography","Subsidy from SRS","Owned",null,-25,25,"English Foundation","Class sets of novels","Hired",30,10,null,"Drama"," Plays/Scripts","Hired",20,25,null,"Engineering Skills","Reprographics to complement classroom texts/booklets","Used",15,15]
[null,null,"Industrial Technology & Design","Subsidy from SRS","Owned",null,-20,20,"History","Classroom Consumables","Used",5,5,null,"Health and Physical Education","Consumables and Classroom resources","Used",40,15,null,"English Foundation","Classroom Consumables and Homework booklet","Used",25,10,null,"Drama","Dramawise Textbook","Hired",74.95,25,null,"Engineering Skills","Subsidy from SRS ","Owned",null,-15,15]
[null,null,"Instrumental Music","Consumables and Classroom resources","Used",30,30,30,"History","Subsidy for SRS","Owned",null,-11,11,"Health and Physical Education","Subsidy from SRS","Owned",null,-15,15,"English Foundation","Subsidy from SRS","Owned",null,-20,20,"Drama","Consumables for performances","Used",35,10,null,"English","Novels and Plays (at least 2 per year) ","Hired",60,15]
[null,null,"Instrumental Music","Loan - Brass, woodwind or string instrument","Hired",30,30,30,"Hospitality","Food Costs","Owned",150,150,null,"History","Textbook - Nelson Connect with History 10","Hired",69.95,21,null,"Geography","Pearson Geography Yr 10 ","Hired",65,12,null,"Drama","Reprographics to complement classroom texts","Used",15,15,null,"English","Textbooks Cambridge Yr 12 Units 3 & 4 , Film, DVDs","Hired",90,30]
[null,null,"Instrumental Music","Loan - percussion equipment","Hired",20,20,20,"Hospitality","Food Consumables- take away containers etc ","Used",40,40,null,"History","Subsidy from SRS","Owned",null,-21,null,"Geography","Consumables and Classroom resources","Used",15,6,null,"Drama","Subsidy from SRS","Owned",null,-75,75,"English","Reprographics to complement classroom texts ","Owned",15,15]
[null,null,"IVAR - Elders in Residence","Classroom Consumables","Used",10,10,null,"Hospitality","Apron","Hired",35,5,null,"Hospitality","Food Costs","Owned",150,150,null,"Geography","Subsidy from SRS","Owned",null,-18,18,"Drama in Practice","Consumables and Resources","Used",10,10,null,"English","Subsidy from SRS","Owned",null,-60,60]
[null,null,"IVAR - Elders in Residence","Subsidy from SRS","Owned",null,-10,10,"Hospitality","Subsidy for SRS","Owned",null,-95,95,"Hospitality","Apron","Hired",35,5,null,"History","Textbook - Nelson Connect with History 10","Hired",69.95,24,null,"Drama in Practice","Subsidy from SRS","Owned",null,-10,10,"Essential English","Novels and Plays (at least 2 per year) ","Hired",60,15]
[null,null,"LOTE","CSDE Enrolment fee ","Used",10,10,null,"Industrial Technology & Design","Workshop Consumables - Student Projects","Owned",60,60,null,"Hospitality","Food Consumables- take away containers etd","Used",40,40,null,"History","Subsidy from SRS","Owned",null,-24,24,"Early Childhood Studies","Consumables and Resources","Used",10,10,null,"Essential English","Textbooks Cambridge Yr 12 Units 3 & 4 , Film, DVDs","Hired",90,30]
[null,null,"LOTE","Subsidy from SRS","Owned",-10,-10,10,"Industrial Technology & Design","Subsidy for SRS","Owned",null,-30,30,"Hospitality","Subsidy from SRS","Owned",null,-95,95,"Hospitality","Food Costs","Used",175,100,null,"Early Childhood Studies","Subsidy from SRS","Owned",null,-10,10,"Essential English","Reprographics to complement classroom texts ","Owned",15,15]
[null,null,"Mathematics","Essential Maths Year 7","Hired",65,21,null,"Instrumental Music","Consumables and Classroom resources","Used",30,30,30,"Industrial Skills - IDS","Workshop Consumables - Student Projects","Owned",100,100,null,"Hospitality","Food Consumables including takeaway containers","Used",40,40,null,"Engineering Skills","Workshop Consumables - Student Projects","Owned",130,130,null,"Essential English","Subsidy from SRS","Used",null,-60,60]
[null,null,"Mathematics","Consumables and Classroom resources","Used",7.75,7.75,null,"Instrumental Music","Loan - Brass, woodwind or string instrument","Hired",30,30,30,"Industrial Skills - IDS","Subsidy from SRS","Owned",null,-20,20,"Hospitality","Subsidy from SRS","Owned",null,-40,40,"Engineering Skills","Reprographics to complement classroom texts/booklets","Used",15,15,null,"Essential Maths","Cambridge Essential Maths 1&2","Hired",80,20]
[null,null,"Mathematics","Subsidy from SRS","Owned",null,-28.75,28.75,"Instrumental Music","Loan - percussion equipment","Hired",20,20,20,"Instrumental Music","Consumables and Classroom resources","Used",30,30,30,"Industrial Skills Metal","Workshop Consumables - Student Projects","Used",150,150,null,"Engineering Skills","Subsidy from SRS ","Owned",null,-15,15,"Essential Maths","Reprographics to complement classroom texts","Owned",30,30]
[null,null,"Maths Acceleration","Essential Maths Year 8","Hired",65,21,null,"IVAR - Elders in Residence","Classroom Consumables","Used",10,10,null,"Instrumental Music","Loan - Brass, woodwind or string instrument","Hired",30,30,30,"Industrial Skills Metal","Subsidy from SRS","Owned",null,-60,60,"English","Novels and Plays (at least 2 per year) ","Hired",60,15,null,"Essential Maths","Consumables and resources","Used",10,10]
[null,null,"Maths Acceleration","Consumables and Classroom resources","Used",7.75,7.75,null,"IVAR - Elders in Residence","Subsidy from SRS","Owned",null,-10,10,"Instrumental Music","Loan - percussion equipment","Hired",20,20,20,"Instrumental Music","Consumables and Classroom resources","Used",30,30,30,"English","Textbooks Cambridge Yr 11 Units 1 & 2 , Film, DVDs","Hired",90,30,null,"Essential Maths","Subsidy from SRS","Owned",null,-60,60]
[null,null,"Maths Acceleration","Subsidy from SRS","Owned",null,-28.75,28.75,"LOTE","CSDE enrolment fee","Used",10,10,null,"Mathematics","Classroom Consumables","Used",5,5,null,"Instrumental Music","Loan - Brass, woodwind or string instrument","Hired",30,30,30,"English","Reprographics to complement classroom texts ","Owned",15,15,null,"Furnishing Skills","Workshop Consumables - Student Projects","Owned",150,150]
[null,null,"Maths Foundation","Maths Mastery","Hired",20,5,null,"LOTE","Subsidy for SRS","Owned",null,-10,10,"Mathematics","Essential Maths Yr 9","Hired",65,21,null,"Instrumental Music","Loan - percussion equipment","Hired",20,20,20,"English","Subsidy from SRS","Owned",null,-60,60,"Furnishing Skills","Reprographics to complement classroom texts/booklets","Used",15,15]
[null,null,"Maths Foundation","Consumables and Classroom resources","Used",7.75,7.75,null,"Mathematics","Essential Maths 8 ","Hired",65,21,null,"Mathematics","Subsidy from SRS","Owned",null,-26,26,"Mathematics","Essential Maths Yr 10","Hired",65,21,null,"Essential English","Novels and Plays (at least 2 per year) ","Hired",60,15,null,"Furnishing Skills","Subsidy from SRS ","Owned",null,-15,15]
[null,null,"Maths Foundation","Subsidy from SRS","Owned",null,-12.75,12.75,"Mathematics","Consumables and Classroom resources","Used",5,5,null,"Mathematics Acceleration","Classroom Consumables","Used",5,5,null,"Mathematics","Consumables and Classroom resources","Used",5,5,null,"Essential English","Textbooks Cambridge Yr 11 Units 1 & 2 , Film, DVDs","Hired",90,30,null,"General Maths","Cambridge General Maths 1 & 2","Hired",80,20]
[null,null,"Music","Classroom Consumables","Used",7.75,7.75,null,"Mathematics","Subsidy for SRS","Owned",null,-26,26,"Mathematics Acceleration","Essential Maths Yr 10","Hired",65,21,null,"Mathematics","Subsidy from SRS","Owned",null,-26,26,"Essential English","Reprographics to complement classroom texts","Owned",15,15,null,"General Maths","Reprographics to complement classroom texts","Owned",30,30]
[null,null,"Music","Subsidy from SRS","Owned",null,-7.75,7.75,"Maths Acceleration","Essential Maths Year 9","Hired",65,21,null,"Mathematics Acceleration","Subsidy from SRS","Owned",null,-26,26,"Mathematics Extension","Maths for QLD 3 ","Hired",54,18,null,"Essential English","Subsidy from SRS","Used",null,-60,60,"General Maths","Consumables and resources","Used",10,10]
[null,null,"Physical Education","Classroom Consumables","Used",86,6,null,"Maths Acceleration","Consumables and Classroom resources","Used",7.75,7.75,null,"Mathematics Foundation","Classroom Consumables","Used",5,5,null,"Mathematics Extension","Consumables and Classroom resources","Used",5,5,null,"Essential Maths","Cambridge Essential Maths 1&2","Hired",80,20,null,"General Maths","Subsidy from SRS","Owned",null,-60,60]
[null,null,"Physical Education","Subsidy from SRS","Owned",null,-6,6,"Maths Acceleration","Subsidy from SRS","Owned",null,-28.75,28.75,"Mathematics Foundation","Essential Maths Yr 8","Hired",65,21,null,"Mathematics Extension","Subsidy from SRS","Owned",null,-23,23,"Essential Maths","Reprographics to complement classroom texts","Owned",30,30,null,"Geography","Textbooks, Film, DVDs","Hired",92,18]
[null,null,"Science","Oxford Yr 7","Hired",58.68,20,null,"Maths Foundation","Maths Mastery","Hired",20,5,null,"Mathematics Foundation","Subsidy from SRS","Owned",null,-26,26,"Mathematics Foundation","Essential Maths Yr 9","Hired",53,17,null,"Essential Maths","Consumables and resources","Used",10,10,null,"Geography","Reprographics to complement classroom texts","Used",15,15]
[null,null,"Science","Classroom Consumables","Used",6,6,null,"Maths Foundation","Consumables and Classroom resources","Used",7.75,7.75,null,"Music","Consumables and Classroom resources","Used",21,21,null,"Mathematics Foundation","Consumables and Classroom resources","Used",5,5,null,"Essential Maths","Subsidy from SRS","Owned",null,-60,60,"Geography","Subsidy from SRS","Owned",null,-33,33]
[null,null,"Science","Subsidy from SRS","Owned",null,-26,26,"Maths Foundation","Subsidy from SRS","Owned",null,-12.75,12.75,"Music","Subsidy from SRS","Owned",null,-21,21,"Mathematics Foundation","Subsidy from SRS","Owned",null,-22,22,"Furnishing Skills","Workshop Consumables - Student Projects","Owned",150,150,null,"Health Supp & Comm Services","Dual Certificate Course Cert II- This course is delivered through an external Provider -  Enrolment into this course is subject to all outstanding fees being paid in full or a payment plan in place.The course fee must be paid by 01st April.","Owned",399,399]
[null,null,"Science Extension","Oxford Yr 8","Hired",58.68,20,null,"Music","Classroom Consumables","Used",7.75,7.75,null,"Science","Oxford Yr 9","Hired",58.68,18,null,"Music","Consumables and Classroom resources","Used",21,21,null,"Furnishing Skills","Reprographics to complement classroom texts/booklets","Used",15,15,null,"Instrumental Music","Consumables and Classroom resources","Used",30,30,30]
[null,null,"Science Extension","Classroom Consumables","Used",6,6,null,"Music","Subsidy from SRS","Owned",null,-7.75,7.75,"Science","Classroom Consumables","Used",3,3,null,"Music","Subsidy from SRS","Owned",null,-21,21,"Furnishing Skills","Subsidy from SRS ","Owned",null,-15,15,"Instrumental Music","Loan - Brass, woodwind or string instrument","Hired",30,30,30]
[null,null,"Science Extension","Subsidy from SRS","Owned",null,-26,26,"Physical Education","Classroom Consumables","Used",20,6,null,"Science","Subsidy from SRS","Owned",null,-21,21,"Physical Education","Consumables and Classroom resources","Used",76,24,null,"General Maths","Cambridge General Maths 1 & 2","Hired",80,20,null,"Instrumental Music","Loan - percussion equipment","Hired",20,20,20]
[null,null,"Visual Arts","Classroom Consumables","Used",70,70,null,"Physical Education","Subsidy for SRS","Owned",null,-6,6,"Science Extension","Oxford Yr 9","Hired",58.68,18,null,"Physical Education","Subsidy from SRS","Owned",null,-24,24,"General Maths","Reprographics to complement classroom texts","Owned",30,30,null,"Literature","Novels and Plays (at least 2 per year) ","Hired",60,15]
[null,null,"Visual Arts","Subsidy from SRS","Used",null,-35,35,"Science","Oxford Yr 8","Hired",58.68,20,null,"Science Extension","Classroom Consumables","Used",3,3,null,"Psychology","Consumables and Classroom resources","Used",50,24,null,"General Maths","Consumables and resources","Used",10,10,null,"Literature","Textbooks Cambridge Yr 12 Units 3 & 4 , Film, DVDs","Hired",90,30]
[null,null,null,null,null,null,null,{"$f":"SUBTOTAL(109,Core_subjects313[Column1])","v":479.25},"Science","Classroom Consumables","Used",5,5,null,"Science Extension","Subsidy from SRS","Owned",null,-21,21,"Psychology","Subsidy from SRS","Used",null,-24,24,"General Maths","Subsidy from SRS","Owned",null,-60,60,"Literature","Reprographics to complement classroom texts ","Owned",15,15]
["GST considerations\nWhile this document does not require GST inclusive and exclusive supply to be demonstrated, it is expected that schools comply with the GST requirements for charging fees to parents and maintain accurate information regarding the taxable supply of items.  For further information refer to the:  ",null,null,null,null,null,null,null,"Science","Subsidy for SRS","Owned",null,-25,25,"Theatre & Film","Classroom Consumables","Used",10,10,null,"Psychology","Text - Oxford Psychology","Hired",73,25,null,"Geography","Textbooks, Film, DVDs","Hired",92,18,null,"Literature","Subsidy from SRS","Owned",null,-60,60]
[null,null,null,null,null,null,null,null,"Science Extension","Oxford Yr 9","Hired",58.68,20,null,"Theatre & Film","Subsidy from SRS","Owned",null,-10,null,"Recreational Studies","Consumables and Classroom resources","Used",15,15,null,"Geography","Reprographics to complement classroom texts","Used",15,15,null,"Marine Science","Marine Education Workbook","Hired",50,25]
[null,null,null,null,null,null,null,null,"Science Extension","Classroom Consumables","Used",6,6,null,"Visual Arts","Classroom Consumables","Used",60,60,null,"Recreational Studies","Subsidy from SRS","Owned",null,-15,null,"Geography","Subsidy from SRS","Owned",null,-33,33,"Marine Science","Subsidy from SRS ","Owned",null,-25,25]
[null,null,null,null,null,null,null,null,"Science Extension","Subsidy from SRS","Owned",null,-26,26,"Visual Arts","Subsidy from SRS","Owned",null,-25,25,"Science A Agric, Aquatics, Physics","Science Quest 10","Hired",58.68,20,null,"Health Supp & Comm Services","Dual Certificate Course Cert II - This course is delivered through an external Provider -  Enrolment into this course is subject to all outstanding fees being paid in full or a payment plan in place.The course fee must be paid by 01st April.","Owned",399,399,null,"Mathematical Methods","Cambridge Maths Methods 1&2 ","Hired",59.95,20]
[null,null,null,null,null,null,null,null,"Theatre & Film","Classroom Consumables","Used",10,10,null,null,null,null,null,null,{"$f":"SUBTOTAL(109,Core_subjects3132026[Column1])","v":575.75},"Science A Agric, Aquatics, Physics","Classroom Consumables","Used",4,4,null,"Instrumental Music","Consumables and Classroom resources","Used",30,30,30,"Mathematical Methods","Consumables and resources","Used",10,10]
["     Administration of SRS and TRA guidelines",null,null,null,null,null,null,null,"Theatre & Film","Subsidy from SRS","Owned",null,-10,10,null,null,null,null,null,null,"Science C Chemistry, Physics","Science Quest 10","Hired",58.68,20,null,"Instrumental Music","Loan - Brass, woodwind or string instrument","Hired",30,30,30,"Mathematical Methods","Reprographics to complement classroom texts","Owned",30,30]
["The Taxation information on OnePortal",null,null,null,null,null,null,null,"Visual Arts","Classroom Consumables","Used",60,60,null,null,null,null,null,null,null,"Science C Chemistry, Physics","Classroom Consumables","Used",4,4,null,"Instrumental Music","Loan - percussion equipment","Hired",20,20,20,"Mathematical Methods","Subsidy from SRS","Owned",null,-60,60]
[null,null,null,null,null,null,null,null,"Visual Arts","Subsidy for SRS","Owned",null,-25,25,null,null,null,null,null,null,"Science","Subsidy from SRS","Owned",null,-24,24,"Literature","Novels and Plays (at least 2 per year) ","Hired",60,15,null,"Modern History","Texts, Film, DVDs","Hired",150,50]
[null,null,null,null,null,null,null,null,null,null,null,null,null,{"$f":"SUBTOTAL(109,N15:N80)","v":618.85},null,null,null,null,null,null,"Science Extension","Textbook - Science 10 Dwyer ","Hired",27.5,10,null,"Literature","Textbooks Cambridge Yr 11 Units 1 & 2 , Film, DVDs","Hired",90,30,null,"Modern History","Reprographics to complement classroom texts","Used",10,10]
[null,null,null,null,null,null,null,null,null,null,null,null,null,null,null,null,null,null,null,null,"Science Extension","Consumables and Classroom resources","Used",31,14,null,"Literature","Reprographics to complement classroom texts ","Owned",15,15,null,"Modern History","Subsidy from SRS ","Owned",null,-60,60]
[null,null,null,null,null,null,null,null,null,null,null,null,null,null,null,null,null,null,null,null,"Science Extension","Subsidy from SRS","Owned",null,-24,24,"Literature","Subsidy from SRS","Owned",null,-60,60,"Music","Consumables and Classroom resources","Used",21,-21]
[null,null,null,null,null,null,null,null,null,null,null,null,null,null,null,null,null,null,null,null,null,null,null,null,null,null,"Marine Science","Marine Education Workbook","Hired",50,25,null,"Music","Subsidy from SRS","Owned",null,-21,21]
[null,null,null,null,null,null,null,null,null,null,null,null,null,null,null,null,null,null,null,null,null,null,null,null,null,{"$f":"SUBTOTAL(109,Core_subjects313202632[Column1])","v":706},"Marine Science","Subsidey from SRS ","Owned",null,-25,25,"Music in Practice","Consumables and Classroom resources","Used",21,-21]
[null,null,null,null,null,null,null,null,null,null,null,null,null,null,null,null,null,null,null,null,null,null,null,null,null,null,"Mathematical Methods","Cambridge Maths Methods 1&2 ","Hired",59.95,20,null,"Music in Practice","Subsidy from SRS","Owned",null,-21,21]
[null,null,null,null,null,null,null,null,null,null,null,null,null,null,null,null,null,null,null,null,null,null,null,null,null,null,"Mathematical Methods","Consumables and resources","Used",10,10,null,"Physical Education","Textbook - Macmillian Physical Education QCE Units 1 &  2","Hired",79,25]
[null,null,null,null,null,null,null,null,null,null,null,null,null,null,null,null,null,null,null,null,null,null,null,null,null,null,"Mathematical Methods","Reprographics to complement classroom texts","Owned",30,30,null,"Physical Education","Reprographics to complement classroom texts","Owned",35,35]
[null,null,null,null,null,null,null,null,null,null,null,null,null,null,null,null,null,null,null,null,null,null,null,null,null,null,"Mathematical Methods","Subsidy from SRS","Owned",null,-60,60,"Physical Education","Subsidy from SRS","Owned",null,-60,60]
[null,null,null,null,null,null,null,null,null,null,null,null,null,null,null,null,null,null,null,null,null,null,null,null,null,null,"Music","Consumables and Classroom resources","Used",21,21,null,"Physics","Oxford Physics 1&2 ","Hired",51,17]
[null,null,null,null,null,null,null,null,null,null,null,null,null,null,null,null,null,null,null,null,null,null,null,null,null,null,"Music","Subsidy from SRS","Owned",null,-21,21,"Physics","Consumables and Resources","Used",55,25]
[null,null,null,null,null,null,null,null,null,null,null,null,null,null,null,null,null,null,null,null,null,null,null,null,null,null,"Music in Practice","Consumables and Classroom resources","Used",21,21,null,"Physics","Reprographics","Owned",18,18]
[null,null,null,null,null,null,null,null,null,null,null,null,null,null,null,null,null,null,null,null,null,null,null,null,null,null,"Music in Practice","Subsidy from SRS","Owned",null,-21,21,"Physics","Subsidy fom SRS","Owned",null,-60,60]
[null,null,null,null,null,null,null,null,null,null,null,null,null,null,null,null,null,null,null,null,null,null,null,null,null,null,"Physical Education","Textbook - Macmillian Physical Education QCE Units 1 &  2","Hired",79,25,null,"Psychology","Consumables and Classroom resources","Used",50,24]
[null,null,null,null,null,null,null,null,null,null,null,null,null,null,null,null,null,null,null,null,null,null,null,null,null,null,"Physical Education","Reprographics to complement classroom texts","Owned",35,35,null,"Psychology","Subsidy from SRS","Used",null,-24,24]
[null,null,null,null,null,null,null,null,null,null,null,null,null,null,null,null,null,null,null,null,null,null,null,null,null,null,"Physical Education","Subsidy from SRS","Owned",null,-60,60,"Psychology","Oxford Psycology - Units 3 and 4 ","Hired",73,25]
[null,null,null,null,null,null,null,null,null,null,null,null,null,null,null,null,null,null,null,null,null,null,null,null,null,null,"Physics","Oxford Physics 1&2 ","Hired",51,17,null,"Social and Community Studies","Consumables and resources","Used",30,5]
[null,null,null,null,null,null,null,null,null,null,null,null,null,null,null,null,null,null,null,null,null,null,null,null,null,null,"Physics","Consumables and Resources","Used",55,25,null,"Social and Community Studies","Classroom reference materials","Owned",55,55]
[null,null,null,null,null,null,null,null,null,null,null,null,null,null,null,null,null,null,null,null,null,null,null,null,null,null,"Physics","Reprographics","Owned",18,18,null,"Social and Community Studies","Subsidy from SRS","Owned",null,-60,60]
[null,null,null,null,null,null,null,null,null,null,null,null,null,null,null,null,null,null,null,null,null,null,null,null,null,null,"Physics","Subsidy fom SRS","Owned",null,-60,60,"Specialist  Maths","Cambridge General Maths 1 & 2","Hired",80,20]
[null,null,null,null,null,null,null,null,null,null,null,null,null,null,null,null,null,null,null,null,null,null,null,null,null,null,"Psychology","Consumables and Classroom resources","Used",50,24,null,"Specialist  Maths","Reprographics to complement classroom texts","Owned",30,30]
[null,null,null,null,null,null,null,null,null,null,null,null,null,null,null,null,null,null,null,null,null,null,null,null,null,null,"Psychology","Subsidy from SRS","Used",null,-24,24,"Specialist  Maths","Consumables and resources","Used",10,10]
[null,null,null,null,null,null,null,null,null,null,null,null,null,null,null,null,null,null,null,null,null,null,null,null,null,null,"Psychology","Textbook - Oxford Psychology Units 1 and 2 ","Hired",73,25,null,"Specialist  Maths","Subsidy from SRS","Owned",null,-60,60]
[null,null,null,null,null,null,null,null,null,null,null,null,null,null,null,null,null,null,null,null,null,null,null,null,null,null,"Social and Community Studies","Consumables and resources","Used",30,5,null,"Sport & Recreation","Qld Senior Physical Education Textbook (Macmillian)","Hired",79,26]
[null,null,null,null,null,null,null,null,null,null,null,null,null,null,null,null,null,null,null,null,null,null,null,null,null,null,"Social and Community Studies","Classroom reference materials","Owned",55,55,null,"Sport & Recreation","Consumables and resources","Used",58,10]
[null,null,null,null,null,null,null,null,null,null,null,null,null,null,null,null,null,null,null,null,null,null,null,null,null,null,"Social and Community Studies","Subsidy from SRS","Owned",null,-60,60,"Sport & Recreation","Reprographics to complement classroom texts","Owned",24,24]
[null,null,null,null,null,null,null,null,null,null,null,null,null,null,null,null,null,null,null,null,null,null,null,null,null,null,"Specialist  Maths","Cambridge General Maths 1 & 2","Hired",80,20,null,"Sport & Recreation","Subsidy from SRS","Owned",null,-60,60]
[null,null,null,null,null,null,null,null,null,null,null,null,null,null,null,null,null,null,null,null,null,null,null,null,null,null,"Specialist  Maths","Reprographics to complement classroom texts","Owned",30,30,null,"Visual Arts in Practice","Visual Diary","Owned",10,10]
[null,null,null,null,null,null,null,null,null,null,null,null,null,null,null,null,null,null,null,null,null,null,null,null,null,null,"Specialist  Maths","Consumables and resources","Used",10,10,null,"Visual Arts in Practice","Consumables and resources","Used",150,45]
[null,null,null,null,null,null,null,null,null,null,null,null,null,null,null,null,null,null,null,null,null,null,null,null,null,null,"Specialist  Maths","Subsidy from SRS","Owned",null,-60,60,"Visual Arts in Practice","Reprographics to complement classroom texts","Owned",40,40]
[null,null,null,null,null,null,null,null,null,null,null,null,null,null,null,null,null,null,null,null,null,null,null,null,null,null,"Sport & Recreation","Qld Senior Physical Education Textbook (Macmillian)","Hired",79,26,null,"Visual Arts in Practice","Subsidy from SRS","Owned",null,-60,60]
[null,null,null,null,null,null,null,null,null,null,null,null,null,null,null,null,null,null,null,null,null,null,null,null,null,null,"Sport & Recreation","Consumables and resources","Used",58,10,null,null,null,null,null,null,{"$f":"SUBTOTAL(109,Core_subjects3132026323538[Column1])","v":1236.75}]
[null,null,null,null,null,null,null,null,null,null,null,null,null,null,null,null,null,null,null,null,null,null,null,null,null,null,"Sport & Recreation","Reprographics to complement classroom texts","Owned",24,24]
[null,null,null,null,null,null,null,null,null,null,null,null,null,null,null,null,null,null,null,null,null,null,null,null,null,null,"Sport & Recreation","Subsidy from SRS","Owned",null,-60,60]
[null,null,null,null,null,null,null,null,null,null,null,null,null,null,null,null,null,null,null,null,null,null,null,null,null,null,"Visual Arts ","Visual Diary","Owned",10,10]
[null,null,null,null,null,null,null,null,null,null,null,null,null,null,null,null,null,null,null,null,null,null,null,null,null,null,"Visual Arts","Consumables and resources","Used",150,45]
[null,null,null,null,null,null,null,null,null,null,null,null,null,null,null,null,null,null,null,null,null,null,null,null,null,null,"Visual Arts","Reprographics to complement classroom texts","Owned",40,40]
[null,null,null,null,null,null,null,null,null,null,null,null,null,null,null,null,null,null,null,null,null,null,null,null,null,null,"Visual Arts ","Subsidy from SRS","Owned",null,-60,60]
[null,null,null,null,null,null,null,null,null,null,null,null,null,null,null,null,null,null,null,null,null,null,null,null,null,null,"Visual Arts in Practice","Visual Diary","Owned",10,10]
[null,null,null,null,null,null,null,null,null,null,null,null,null,null,null,null,null,null,null,null,null,null,null,null,null,null,"Visual Arts in Practice","Consumables and resources","Used",35,35]
[null,null,null,null,null,null,null,null,null,null,null,null,null,null,null,null,null,null,null,null,null,null,null,null,null,null,"Visual Arts in Practice","Reprographics to complement classroom texts","Owned",25,25]
[null,null,null,null,null,null,null,null,null,null,null,null,null,null,null,null,null,null,null,null,null,null,null,null,null,null,"Visual Arts in Practice","Subsidy from SRS","Owned",null,-25,25]
[]
[null,null,null,null,null,null,null,null,null,null,null,null,null,null,null,null,null,null,null,null,null,null,null,null,null,null,null,null,null,null,null,{"$f":"SUBTOTAL(109,Core_subjects31320263235[Column1])","v":1340.75}]

{"sheet":"Year 7 Presentation Sheet","index":1,"n_rows":186,"n_cols":7,"rows_kept":186,"cut":false,"hidden":false,"merged":[[85,0,86,4],[90,0,91,4],[17,0,20,4],[73,0,76,4],[79,0,80,4],[83,0,84,4],[22,0,22,4],[24,0,25,4],[26,0,28,4],[29,0,31,4],[33,0,33,4],[54,0,55,4],[0,5,2,10],[3,5,4,5],[3,6,4,6],[64,0,65,4],[69,0,70,4],[34,0,37,4],[35,5,37,9],[38,0,42,4],[49,0,50,4],[51,0,52,4],[58,0,59,4],[60,2,60,3],[61,0,62,0],[61,1,62,1],[61,2,62,3],[19,6,23,10],[3,0,3,1],[6,0,10,4],[6,5,8,5],[12,0,12,4],[13,0,16,4],[30,5,32,9],[6,6,9,10],[19,5,23,5],[12,7,12,10],[14,7,14,10],[16,7,16,10],[18,5,18,6]]}
[null,"Year 7 ",null,null,null,"Control Panel - Fill in the white boxes  with the appropriate information and then press \"Refresh Tables\" below to populate your letter"]
[]
[]
["Dear Parents/Guardians,",null,null,null,null,"Insert the year that this SRS is offered:",2021]
[]
[]
["This letter includes important information about the fees and inclusions for the SRS . If you have previously opted in to the SRS your participation is assumed for the remainder of your child's enrolment, unless you inform the school otherwise by completing a new participation agreement form. If you are a new parent to the school, this information will assist you in making a decision as to whether you wish to participate in the SRS.",null,null,null,null,"Insert a sentence summarising the fee: ","The SRS fee for Year 7 is currently $135.   Innisfail State College  always will ensure that the Student Resource Scheme fee is low and affordable and will use our schools' bulk purchasing power to guarantee a better deal for parents. "]
[]
[]
[]
[]
[]
["What is provided by the Queensland Government?",null,null,null,null,"Cost of the SRS per student:",265]
["The Queensland Government supports children’s education by providing funding for instruction (teachers), facilities (school grounds and buildings, internet), and administration (staff to run the school). Funding for schools does not extend to individual student resources such as textbooks, equipment for personal use, and many items used by the student in the classroom."]
[null,null,null,null,null,"TRA allocated to student:",130]
[]
[null,null,null,null,null,"Full SRS fee due:",135]
["The SRS helps parents to source these resources. The school can purchase resources at lower rates due to its bulk buying power. Resources such as textbooks or musical instruments that will be used over a period of time are hired to students to further reduce costs for families. Participating in the SRS also offers a convenient way for parents to source the items that their child needs for school, and ensures that all students have access to the same standard of resources."]
[]
[null,null,null,null,null,"Insert the name and contact details for the school contact for SRS queries:","Alana Robertson, Business Manager"]
[]
[]
["The types of resources that will be included are: "]
[]
["g Owned by the student – e.g. printing credit, student ID card – once provided, these items are retained by the student."]
[]
["g Hired to the student for a specific duration of time – e.g. textbooks or musical instruments\n       –these items will need to be returned to the school in reasonable condition at the end of the hire  \n       period or if the student leaves the school. "]
[]
[]
["g Used in class – e.g. stationery, timber, material, workbooks – these items will be used in \n       class. Finished products that are created from these resources will generally come home with\n       the student."]
[]
[]
[]
["The Fee"]
[{"$f":"G7","v":"The SRS fee for Year 7 is currently $135.   Innisfail State College  always will ensure that the Student Resource Scheme fee is low and affordable and will use our schools' bulk purchasing power to guarantee a better deal for parents. "}]
[]
[]
[]
["If you are not satisfied that the SRS fee represents good value for money based on the inclusions (over the page), you may choose not to participate in the SRS. If that is the case, please complete a new Participation Agreement Form, indicating that you no longer wish to participate. If you choose not to participate, you will be provided with a detailed list of resources that you will need to provide for the student."]
[]
[]
[]
[]
[]
[]
[]
[]
[]
["The TRA"]
["The Department of Education provides a Textbook and Resource Allowance (TRA) to assist parents with the cost of textbooks and other education resources for eligible Years 7 to 12 students. "]
[]
["For those students who are eligible to receive the TRA, the TRA will be applied to reduce the cost of participation as shown in the table below. Thus the SRS invoice you receive will be the full cost of participation in the SRS minus the TRA already held at the school. "]
[]
[]
["Please be aware that there may be two lines of charges on your invoice indicating the GST inclusive and GST exclusive fees depending on the resources supplied by the SRS ."]
[]
[]
["Cost Breakdown"]
["The diagrams below reflect how the TRA has been deducted from the SRS fee for eligible students who have opted in to the Curriculum SRS."]
[]
["Cost of SRS","TRA","SRS fee due"]
[265,{"$f":"G15","v":130},135]
[]
[]
["You may opt to pay the SRS by instalments via EFT, BPoint or Centrepay - you will receive an invoice for the full amount. You will receive a Statement toward the end of each term identifying amount remaining."]
[]
[]
[]
["Financial Difficulty"]
["If you would like to participate, but are experiencing financial difficulties, please contact the school to arrange an appointment to discuss options. Any information that you provide will be confidential."]
[]
[]
["Release of resources"]
["Resources will not be distributed until the full or first payment has been paid to the school. Any unpaid invoices, will be managed according to the department’s Debt Management Procedure and may result in the student being excluded from the scheme and/or from participating in extra-curricular activities until payments are made."]
[]
[]
[]
[]
["Return of hired resources"]
["A repair or replacement cost will be charged to the parent for any items that are damaged or not returned."]
[]
[]
["Contact us"]
["If you have any queries regarding the SRS and its inclusions, please contact and arrange an appointment with:\n                                                             "]
[]
[{"$f":"G20","v":"Alana Robertson, Business Manager"}]
[]
[]
["The Curriculum Student Resource Scheme Inclusions "]
[]
["The Curriculum Student Resource Scheme (SRS) is made up of two components. The components are general items and resources for core and elective subjects. The tables below detail the SRS inclusions for these components."]
[]
[]
[]
["General Items","Resource","Type of Resource"," Acquisition cost","Value (to parent) "]
["General Items","Printing Credit","Used",20,11]
[null,"Administration of Student Resource Scheme","Used",0,10]
[null,"Reprographics to complement classroom texts","Used",40,40]
["Grand Total",null,null,60,61]
[]
[]
[]
[]
[]
[]
[]
[]
["Subject","Resource","Type of Resource","Acquisition cost "," Value (to parent)"]
["Drama",null,null,7.75,0]
[null,"Classroom Consumables","Used",7.75,7.75]
[null,"Subsidy from SRS","Owned",null,-7.75]
["English",null,null,91.2,0]
[null,"Classroom Consumables","Used",5,5]
[null,"Subsidy from SRS","Owned",null,-36.25]
[null,"Pearson Text Book 7","Hired",34.950000000000003,5]
[null,"Grammar and Language workbooks","Owned",16.25,16.25]
[null,"Class sets of Novels/Dictionaries-Paper Planes","Hired",35,10]
["Music",null,null,7.75,0]
[null,"Classroom Consumables","Used",7.75,7.75]
[null,"Subsidy from SRS","Owned",null,-7.75]
["Science",null,null,64.680000000000007,0]
[null,"Classroom Consumables","Used",6,6]
[null,"Subsidy from SRS","Owned",null,-26]
[null,"Oxford Yr 7","Hired",58.68,20]
["Mathematics",null,null,72.75,0]
[null,"Consumables and Classroom resources","Used",7.75,7.75]
[null,"Subsidy from SRS","Owned",null,-28.75]
[null,"Essential Maths Year 7","Hired",65,21]
["Physical Education",null,null,86,0]
[null,"Classroom Consumables","Used",86,6]
[null,"Subsidy from SRS","Owned",null,-6]
["Industrial Technology & Design",null,null,40,20]
[null,"Workshop Consumables - Student Projects","Owned",40,40]
[null,"Subsidy from SRS","Owned",null,-20]
["LOTE",null,null,0,0]
[null,"Subsidy from SRS","Owned",-10,-10]
[null,"CSDE Enrolment fee ","Used",10,10]
["Instrumental Music",null,null,80,80]
[null,"Consumables and Classroom resources","Used",30,30]
[null,"Loan - Brass, woodwind or string instrument","Hired",30,30]
[null,"Loan - percussion equipment","Hired",20,20]
["Hospitality",null,null,40,20]
[null,"Subsidy from SRS","Owned",null,-20]
[null,"Food - consumables ","Used",40,40]
["English Accelerated ",null,null,91.2,0]
[null,"Classroom Consumables","Used",5,5]
[null,"Subsidy from SRS","Owned",null,-36.25]
[null,"Grammar and Language workbooks","Owned",16.25,16.25]
[null,"Pearson Text Book 8 ","Hired",34.950000000000003,5]
[null,"Class sets of Novels/Dictionaries (Nanberry)","Hired",35,10]
["English Foundation",null,null,56.25,0]
[null,"Classroom Consumables","Used",5,5]
[null,"Subsidy from SRS","Owned",null,-31.25]
[null,"Grammar and Language workbooks","Owned",16.25,16.25]
[null,"Class sets of Novels - Ned Kelly","Hired",35,10]
["Maths Acceleration",null,null,72.75,0]
[null,"Consumables and Classroom resources","Used",7.75,7.75]
[null,"Subsidy from SRS","Owned",null,-28.75]
[null,"Essential Maths Year 8","Hired",65,21]
["Maths Foundation",null,null,27.75,0]
[null,"Consumables and Classroom resources","Used",7.75,7.75]
[null,"Subsidy from SRS","Owned",null,-12.75]
[null,"Maths Mastery","Hired",20,5]
["Visual Arts",null,null,70,35]
[null,"Classroom Consumables","Used",70,70]
[null,"Subsidy from SRS","Used",null,-35]
["Humanities & Social Sciences",null,null,144,0]
[null,"Subsidy from SRS","Owned",null,-28]
[null,"Retroactive 7 - History, Pearson 7 Geography","Hired",104,20]
[null,"Retroactive 7 & Pearson Workbook","Hired",40,8]
["Computer Education",null,null,7.75,0]
[null,"Classroom Consumables","Used",7.75,7.75]
[null,"Subsidy from SRS","Owned",null,-7.75]
["Dance",null,null,10,0]
[null,"Classroom Consumables","Used",10,10]
[null,"Subsidy from SRS","Owned",null,-10]
["Digital Technologies",null,null,6,0]
[null,"Classroom Consumables","Used",6,6]
[null,"Subsidy from SRS","Owned",null,-6]
["IVAR - Elders in Residence",null,null,10,0]
[null,"Classroom Consumables","Used",10,10]
[null,"Subsidy from SRS","Owned",null,-10]
["Science Extension",null,null,64.680000000000007,0]
[null,"Classroom Consumables","Used",6,6]
[null,"Subsidy from SRS","Owned",null,-26]
[null,"Oxford Yr 8","Hired",58.68,20]

{"sheet":"Year 8 Presentation Sheet","index":2,"n_rows":199,"n_cols":12,"rows_kept":199,"cut":false,"hidden":false,"merged":[[93,0,94,4],[29,0,31,4],[34,0,37,4],[63,2,63,3],[64,0,65,0],[64,1,65,1],[82,0,83,4],[86,0,87,4],[76,0,79,4],[38,0,42,4],[50,0,52,4],[88,0,89,4],[64,2,65,3],[33,0,33,4],[81,0,81,1],[72,0,73,4],[0,5,2,10],[3,0,3,1],[11,0,11,4],[12,0,15,4],[5,5,7,5],[5,6,8,10],[5,0,10,4],[16,0,20,4],[30,5,32,9],[22,0,22,4],[67,0,69,4],[61,0,62,4],[24,0,25,4],[26,0,28,4],[18,5,20,5],[18,6,20,10],[57,0,58,4],[53,0,55,4],[35,5,37,9]]}
[null,"Year 8 ",null,null,null,"Control Panel - Fill in the white boxes  with the appropriate information and then press \"Refresh Tables\" below to populate your letter"]
[]
[]
["Dear Parents/Guardians,",null,null,null,null,"Insert the year that this SRS is offered:",2021]
[]
["This letter includes important information about the fees and inclusions for the SRS . If you have previously opted in to the SRS your participation is assumed for the remainder of your child's enrolment, unless you inform the school otherwise by completing a new participation agreement form. If you are a new parent to the school, this information will assist you in making a decision as to whether you wish to participate in the SRS.",null,null,null,null,"Insert a sentence summarising the fee: ","The SRS fee for Year 8 is currently $135. Innisfail State College always will ensure that the Student Resource Scheme fee is low and affordable and will use our schools' bulk purchasing power to guarantee a better deal for parents. ",null,null,null,null,"`"]
[]
[]
[]
[]
[null,null,null,null,null,"Cost of the SRS per student:",265]
["What is provided by the Queensland Government?"]
["The Queensland Government supports children’s education by providing funding for instruction (teachers), facilities (school grounds and buildings, internet), and administration (staff to run the school). Funding for schools does not extend to individual student resources such as textbooks, equipment for personal use, and many items used by the student in the classroom.",null,null,null,null,"TRA allocated to student:",130]
[]
[null,null,null,null,null,"Full SRS fee due:",135]
[]
["The SRS helps parents to source these resources. The school can purchase resources at lower rates due to its bulk buying power. Resources such as textbooks or musical instruments that will be used over a period of time are hired to students to further reduce costs for families. Participating in the SRS also offers a convenient way for parents to source the items that their child needs for school, and ensures that all students have access to the same standard of resources."]
[]
[null,null,null,null,null,"Insert here the name and contact details for the school contact for SRS queries:","Alana Robertson - Business Manager "]
[]
[]
[]
["The types of resources that will be included are: "]
[]
["g Owned by the student – e.g. printing credit, student ID card – once provided, these items are \n       retained by the student and used at their discretion. "]
[]
["g Hired to the student for a specific duration of time – e.g. textbooks or musical \n       instruments–these items will need to be returned to the school in reasonable \n       condition at the end of the hire period or if the student leaves the school. "]
[]
[]
["g Used in class – e.g. stationery, timber, material, workbooks – these items will be \n       used in class. Finished products that are created from these resources will \n       generally come home with the student."]
[]
[]
[]
["The Fee"]
[{"$f":"G6","v":"The SRS fee for Year 8 is currently $135. Innisfail State College always will ensure that the Student Resource Scheme fee is low and affordable and will use our schools' bulk purchasing power to guarantee a better deal for parents. "}]
[]
[]
[]
["If you are not satisfied that the SRS fee represents good value for money based on the inclusions (over the page), you may choose not to participate in the SRS. If that is the case, please complete a new Participation Agreement Form, indicating that you no longer wish to participate. If you choose not to participate, you will be provided with a detailed list of resources that you will need to provide for the student."]
[]
[]
[]
[]
[]
[]
[]
[]
[]
[]
["The TRA"]
["The Department of Education provides a Textbook and Resource Allowance (TRA) to assist parents with the cost of textbooks and other education resources for eligible Years 7 to 12 students. "]
[]
[]
["For those students who are eligible to receive the TRA, the TRA will be applied to reduce the cost of participation as shown in the table below. Thus the SRS invoice you receive will be the full cost of participation in the SRS minus the TRA already held at the school."]
[]
[]
[]
["Please be aware that there may be two lines of charges on your invoice indicating the GST inclusive and GST exclusive fees depending on the resources supplied by the SRS ."]
[]
[]
["Cost Breakdown"]
["The diagrams below reflect how the TRA has been deducted from the SRS fee for eligible students who have opted in to the Curriculum SRS."]
[]
["Cost of SRS","TRA"," SRS fee due"]
[265,{"$f":"G13","v":130},135]
[]
[]
["You may opt to pay the SRS by instalments via EFT, Bpoint or Centrepay - you will receive an invoice for the full amount. You will receive a Statement toward the end of each term identifying amount remaining."]
[]
[]
[]
["Financial Difficulty"]
["If you would like to participate, but are experiencing financial difficulties, please contact the school to arrange an appointment to discuss options. Any information that you provide will be confidential."]
[]
[]
["Release of resources"]
["Resources will not be distributed until the full or first payment has been paid to the school. Any unpaid invoices, will be managed according to the department’s Debt Management Procedure and may result in the student being excluded from the scheme and/or from participating in extra-curricular activities until payments are made."]
[]
[]
[]
[]
["Return of hired resources"]
["A repair or replacement cost will be charged to the parent for any items that are damaged or not returned."]
[]
[]
["Contact us"]
["If you have any queries regarding the SRS and its inclusions, please contact and arrange an appointment with:\n                                                             "]
[]
[{"$f":"G19","v":"Alana Robertson - Business Manager "}]
[]
[]
["The Curriculum Student Resource Scheme Inclusions "]
[]
["The Curriculum Student Resource Scheme (SRS) is made up of two components. The components are general items and resources for core and elective subjects. The tables below detail the SRS inclusions for these components."]
[]
[]
["General Items","Resource","Type of Resource","Acquisition cost "," Value (to parent)"]
["General Items","Administration of Student Resource Scheme","Used",0,10]
[null,"Printing Credit","Used",11,11]
[null,"Reprographics to complement classroom texts","Used",40,40]
["Grand Total",null,null,51,61]
[]
[]
[]
[]
[]
[]
["Subject","Resource","Type of Resource"," Acquisition cost"," Value (to parent)"]
["English",null,null,106.25,0]
[null,"Subsidy for SRS","Owned",null,-36.25]
[null,"Class sets of Novels/Dictionaries -  Nanberry($19.95)","Hired",35,10]
[null,"Pearson Text Book 8","Hired",40,5]
[null,"Gramar & language booklets","Owned",16.25,16.25]
[null,"Class consumables","Used",15,5]
["Science",null,null,63.68,0]
[null,"Classroom Consumables","Used",5,5]
[null,"Subsidy for SRS","Owned",null,-25]
[null,"Oxford Yr 8","Hired",58.68,20]
["Music",null,null,7.75,0]
[null,"Classroom Consumables","Used",7.75,7.75]
[null,"Subsidy from SRS","Owned",null,-7.75]
["(blank)"]
[null,"(blank)","(blank)"]
["Mathematics",null,null,70,0]
[null,"Consumables and Classroom resources","Used",5,5]
[null,"Subsidy for SRS","Owned",null,-26]
[null,"Essential Maths 8 ","Hired",65,21]
["Physical Education",null,null,20,0]
[null,"Classroom Consumables","Used",20,6]
[null,"Subsidy for SRS","Owned",null,-6]
["Industrial Technology & Design",null,null,60,30]
[null,"Workshop Consumables - Student Projects","Owned",60,60]
[null,"Subsidy for SRS","Owned",null,-30]
["LOTE",null,null,10,0]
[null,"Subsidy for SRS","Owned",null,-10]
[null,"CSDE enrolment fee","Used",10,10]
["Instrumental Music",null,null,80,80]
[null,"Consumables and Classroom resources","Used",30,30]
[null,"Loan - Brass, woodwind or string instrument","Hired",30,30]
[null,"Loan - percussion equipment","Hired",20,20]
["Hospitality",null,null,225,100]
[null,"Apron","Hired",35,5]
[null,"Food Costs","Owned",150,150]
[null,"Subsidy for SRS","Owned",null,-95]
[null,"Food Consumables- take away containers etc ","Used",40,40]
["Business Studies",null,null,40,-42]
[null,"Consumables and Classroom resources","Used",40,-21]
[null,"Subsidy from SRS","Owned",null,-21]
["Dance",null,null,71.95,0]
[null,"Consumables and Classroom resources","Used",20,4]
[null,"Subsidy from SRS","Owned",null,-21]
[null,"Textbook - Dance count me in","Hired",51.95,17]
["Design",null,null,20,0]
[null,"Consumables and Classroom resources","Used",20,4]
[null,"Subsidy from SRS","Owned",null,-4]
["Digital Technologies",null,null,55,0]
[null,"Consumables and Classroom resources","Used",45,11]
[null,"Subsidy from SRS","Owned",null,-21]
[null,"Adobe Software Licence","Hired",10,10]
["English Accelerated ",null,null,106.35,0]
[null,"Subsidy for SRS","Owned",null,-55.35]
[null,"Class sets of Novels/Dictionaries -  Nanberry($19.95)","Hired",35,29]
[null,"Pearson Text Book 8","Hired",40,5]
[null,"Gramar & language booklets","Owned",16.350000000000001,16.350000000000001]
[null,"Class consumables","Used",15,5]
["English Foundation",null,null,55,0]
[null,"Classroom Consumables","Used",25,10]
[null,"Subsidy from SRS","Owned",null,-20]
[null,"Class sets of novels","Hired",30,10]
["Maths Acceleration",null,null,72.75,0]
[null,"Consumables and Classroom resources","Used",7.75,7.75]
[null,"Subsidy from SRS","Owned",null,-28.75]
[null,"Essential Maths Year 9","Hired",65,21]
["Maths Foundation",null,null,27.75,0]
[null,"Consumables and Classroom resources","Used",7.75,7.75]
[null,"Subsidy from SRS","Owned",null,-12.75]
[null,"Maths Mastery","Hired",20,5]
["Science Extension",null,null,64.680000000000007,0]
[null,"Classroom Consumables","Used",6,6]
[null,"Subsidy from SRS","Owned",null,-26]
[null,"Oxford Yr 9","Hired",58.68,20]
["History",null,null,25,0]
[null,"Classroom Consumables","Used",5,5]
[null,"Subsidy for SRS","Owned",null,-11]
[null,"Nelson Connect with History 8","Hired",20,6]
["Visual Arts",null,null,60,35]
[null,"Classroom Consumables","Used",60,60]
[null,"Subsidy for SRS","Owned",null,-25]
["Geography",null,null,129.94999999999999,0]
[null,"Classroom Consumables","Used",5,5]
[null,"Jacaranda Atlas","Hired",65,12]
[null,"Pearson Geography","Hired",59.95,20]
[null,"Subsidy","Owned",null,-37]
["IVAR - Elders in Residence",null,null,10,0]
[null,"Classroom Consumables","Used",10,10]
[null,"Subsidy from SRS","Owned",null,-10]
["Theatre & Film",null,null,10,0]
[null,"Classroom Consumables","Used",10,10]
[null,"Subsidy from SRS","Owned",null,-10]

{"sheet":"Year 9 Presentation Sheet","index":3,"n_rows":198,"n_cols":7,"rows_kept":198,"cut":false,"hidden":false,"merged":[[78,0,81,4],[84,0,85,4],[88,0,89,4],[90,0,91,4],[18,5,22,5],[18,6,22,10],[54,0,56,4],[58,0,59,4],[74,0,75,4],[35,0,38,4],[36,5,38,9],[39,0,43,4],[51,0,53,4],[64,2,64,3],[65,0,66,0],[65,1,66,1],[65,2,66,3],[68,0,71,4],[95,0,97,4],[11,0,11,4],[12,0,15,4],[0,5,2,10],[3,0,3,1],[5,0,10,4],[5,5,7,5],[5,6,8,10],[30,0,32,4],[31,5,33,9],[34,0,34,4],[62,0,63,4],[16,0,21,4],[23,0,23,4],[25,0,26,4],[27,0,29,4]]}
[null,"Year 9 ",null,null,null,"Control Panel - Fill in the white boxes  with the appropriate information and then press \"Refresh Tables\" below to populate your letter"]
[]
[]
["Dear Parents/Guardians,",null,null,null,null,"Insert the year that this SRS is offered: ",2021]
[]
["This letter includes important information about the fees and inclusions for the SRS . If you have previously opted in to the SRS your participation is assumed for the remainder of your child's enrolment, unless you inform the school otherwise by completing a new participation agreement form. If you are a new parent to the school, this information will assist you in making a decision as to whether you wish to participate in the SRS.",null,null,null,null,"Insert a sentence summarising the fee: ","The SRS fee for Year 9 is currently $135. Innisfail State College always will ensure that the Student Resource Scheme fee is low and affordable and will use our schools' bulk purchasing power to guarantee a better deal for parents. "]
[]
[]
[]
[]
[null,null,null,null,null,"Cost of SRS per student:",265]
["What is provided by the Queensland Government?"]
["The Queensland Government supports children’s education by providing funding for instruction (teachers), facilities (school grounds and buildings, internet), and administration (staff to run the school). Funding for schools does not extend to individual student resources such as textbooks, equipment for personal use, and many items used by the student in the classroom.",null,null,null,null,"TRA allocated to student:",130]
[]
[null,null,null,null,null,"Full SRS fee due:",135]
[]
["The SRS helps parents to source these resources. The school can purchase resources at lower rates due to its bulk buying power. Resources such as textbooks or musical instruments that will be used over a period of time are hired to students to further reduce costs for families. Participating in the SRS also offers a convenient way for parents to source the items that their child needs for school, and ensures that all students have access to the same standard of resources."]
[]
[null,null,null,null,null,"Insert here the name and contact details for the school contact for SRS queries:","Alana Robertson   Business Manager "]
[]
[]
[]
[]
["The types of resources that will be included are: "]
[]
["g Owned by the student – e.g. printing credit, student ID Card – once provided, these items are retained by the student. "]
[]
["g Hired to the student for a specific duration of time – e.g. textbooks or musical \n       instruments–these items will need to be returned to the school in reasonable \n       condition at the end of the hire period or if the student leaves the school. "]
[]
[]
["g Used in class – e.g. stationery, timber, material, workbooks – these items will be \n       used in class. Finished products that are created from these resources will \n       generally come home with the student."]
[]
[]
[]
["The Fee"]
[{"$f":"G6","v":"The SRS fee for Year 9 is currently $135. Innisfail State College always will ensure that the Student Resource Scheme fee is low and affordable and will use our schools' bulk purchasing power to guarantee a better deal for parents. "}]
[]
[]
[]
["If you are not satisfied that the SRS fee represents good value for money based on the inclusions (over the page), you may choose not to participate in the SRS. If that is the case, please complete a new Participation Agreement Form, indicating that you no longer wish to participate. If you choose not to participate, you will be provided with a detailed list of resources that you will need to provide for the student."]
[]
[]
[]
[]
[]
[]
[]
[]
[]
[]
["The TRA"]
["The Department of Education provides a Textbook and Resource Allowance (TRA) to assist parents with the cost of textbooks and other education resources for eligible Years 7 to 12 students. "]
[]
[]
["For those students who are eligible to receive the TRA, the TRA will be applied to reduce the cost of participation as shown in the table below. Thus the SRS invoice you receive will be the full cost of participation in the SRS minus the TRA already held at the school."]
[]
[]
[]
["Please be aware that there may be two lines of charges on your invoice indicating the GST inclusive and GST exclusive fees depending on the resources supplied by the SRS ."]
[]
[]
["Cost Breakdown"]
["The diagrams below reflect how the TRA has been deducted from the SRS fee for eligible students who have opted in to the Curriculum SRS."]
[]
["Cost of SRS","TRA","SRS fee due"]
[265,{"$f":"G13","v":130},135]
[]
[]
["You may opt to pay the SRS by instalments via EFT, Bpoint or Centrepay - you will receive an invoice for the full amount. You will receive a Statement toward the end of each term identifying amount remaining."]
[]
[]
[]
[]
["Financial Difficulty"]
["If you would like to participate, but are experiencing financial difficulties, please contact the school to arrange an appointment to discuss options. Any information that you provide will be confidential."]
[]
[]
["Release of resources"]
["Resources will not be distributed until the full or first payment has been paid to the school. Any unpaid invoices, will be managed according to the department’s Debt Management Procedure and may result in the student being excluded from the scheme and/or from participating in extra-curricular activities until payments are made."]
[]
[]
[]
[]
["Return of hired resources"]
["A repair or replacement cost will be charged to the parent for any items that are damaged or not returned."]
[]
[]
["Contact us"]
["If you have any queries regarding the SRS and its inclusions, please contact and arrange an appointment with:\n                                                             "]
[]
[{"$f":"G19","v":"Alana Robertson   Business Manager "}]
[]
[]
["The Curriculum Student Resource Scheme Inclusions "]
[]
["The Curriculum Student Resource Scheme (SRS) is made up of two components. The components are general items and resources for core and elective subjects. The tables below detail the SRS inclusions for these components."]
[]
[]
[]
["General Items","Resource","Type of Resource"," Acquisition cost","Value (to parent) "]
["General Items","Printing Credit","Used",11,11]
[null,"Administration of Student Resource Scheme","Used",0,10]
[null,"Reprographics to complement classroom texts","Used",40,40]
["Grand Total",null,null,51,61]
[]
[]
[]
[]
[]
[]
[]
[]
["Subject","Resource","Type of Resource","Acquisition cost ","Value (to parent) "]
["English"]
[null,"Classroom Consumables","Used",25,10]
[null,"Subsidy from SRS","Owned",null,-40]
[null,"Pearson Text Yr 9 and novels","Hired",54.95,15]
[null,"Grammar and Language booklet","Used",20,5]
[null,"Homework Booklet","Used",10,10]
["Music"]
[null,"Consumables and Classroom resources","Used",21,21]
[null,"Subsidy from SRS","Owned",null,-21]
["Science"]
[null,"Classroom Consumables","Used",3,3]
[null,"Subsidy from SRS","Owned",null,-21]
[null,"Oxford Yr 9","Hired",58.68,18]
["Mathematics"]
[null,"Classroom Consumables","Used",5,5]
[null,"Subsidy from SRS","Owned",null,-26]
[null,"Essential Maths Yr 9","Hired",65,21]
["Instrumental Music"]
[null,"Consumables and Classroom resources","Used",30,30]
[null,"Loan - Brass, woodwind or string instrument","Hired",30,30]
[null,"Loan - percussion equipment","Hired",20,20]
["Business Studies"]
[null,"Consumables and Classroom resources","Used",40,-21]
[null,"Subsidy from SRS","Owned",null,-21]
["Dance"]
[null,"Consumables and Classroom resources","Used",20,4]
[null,"Subsidy from SRS","Owned",null,-21]
[null,"Textbook - Dance count me in","Hired",51.95,17]
["Digital Technologies"]
[null,"Consumables and Classroom resources","Used",45,11]
[null,"Subsidy from SRS","Owned",null,-21]
[null,"Adobe Software Licence","Hired",10,10]
["History"]
[null,"Subsidy from SRS","Owned",null,-21]
[null,"Textbook - Nelson Connect with History 10","Hired",69.95,21]
["Health and Physical Education"]
[null,"Consumables and Classroom resources","Used",40,15]
[null,"Subsidy from SRS","Owned",null,-15]
["Visual Arts"]
[null,"Classroom Consumables","Used",60,60]
[null,"Subsidy from SRS","Owned",null,-25]
["Agricultural Science"]
[null,"Consumables and Classroom resources","Used",7.75,7.75]
[null,"Subsidy from SRS","Owned",null,-7.75]
["Design"]
[null,"Consumables and Classroom resources","Used",20,4]
[null,"Subsidy from SRS","Owned",null,-4]
["English Foundation"]
[null,"Classroom Consumables","Used",25,10]
[null,"Subsidy from SRS","Owned",null,-20]
[null,"Class sets of novels","Hired",30,10]
["English Acceleration"]
[null,"Classroom Consumables","Used",25,10]
[null,"Subsidy from SRS","Owned",null,-40]
[null,"Grammar and Language booklet","Used",20,5]
[null,"Homework Booklet","Used",10,10]
[null,"Pearson Text Yr10 and novels","Hired",54.95,15]
["Geography"]
[null,"Classroom Consumables","Used",10,10]
[null,"Jacaranda Atlas","Hired",50,10]
[null,"Subsidy from SRS","Owned",null,-25]
[null,"Qld Geography","Hired",45,15]
["Hospitality"]
[null,"Apron","Hired",35,5]
[null,"Food Costs","Owned",150,150]
[null,"Subsidy from SRS","Owned",null,-95]
[null,"Food Consumables- take away containers etd","Used",40,40]
["Industrial Skills - IDS"]
[null,"Workshop Consumables - Student Projects","Owned",100,100]
[null,"Subsidy from SRS","Owned",null,-20]
["Mathematics Foundation"]
[null,"Classroom Consumables","Used",5,5]
[null,"Subsidy from SRS","Owned",null,-26]
[null,"Essential Maths Yr 8","Hired",65,21]
["Mathematics Acceleration"]
[null,"Classroom Consumables","Used",5,5]
[null,"Subsidy from SRS","Owned",null,-26]
[null,"Essential Maths Yr 10","Hired",65,21]
["Science Extension"]
[null,"Classroom Consumables","Used",3,3]
[null,"Subsidy from SRS","Owned",null,-21]
[null,"Oxford Yr 9","Hired",58.68,18]
["Theatre & Film"]
[null,"Classroom Consumables","Used",10,10]
[null,"Subsidy from SRS","Owned",null,-10]

{"sheet":"Year 10 Presentation Sheet","index":4,"n_rows":216,"n_cols":7,"rows_kept":216,"cut":false,"hidden":false,"merged":[[5,5,7,5],[0,5,2,10],[5,6,8,10],[58,0,59,4],[20,0,20,4],[22,0,23,4],[12,0,15,4],[16,0,18,4],[17,6,17,10],[54,0,55,4],[24,0,26,4],[27,0,29,4],[31,0,31,4],[32,0,35,4],[33,5,35,9],[36,0,40,4],[64,0,67,4],[91,0,93,4],[11,0,11,4],[3,0,3,1],[5,0,10,4],[60,2,60,3],[61,0,62,0],[61,1,62,1],[61,2,62,3],[74,0,77,4],[80,0,81,4],[84,0,85,4],[86,0,87,4],[70,0,71,4],[48,0,49,4],[50,0,52,4]]}
[null,"Year 10 ",null,null,null,"Control Panel - Fill in the white boxes  with the appropriate information and then press \"Refresh Tables\" below to populate your letter"]
[]
[]
["Dear Parents/Guardians,",null,null,null,null,"Insert the year that this SRS is offered:",2021]
[]
["This letter includes important information about the fees and inclusions for the SRS . If you have previously opted in to the SRS your participation is assumed for the remainder of your child's enrolment, unless you inform the school otherwise by completing a new participation agreement form. If you are a new parent to the school, this information will assist you in making a decision as to whether you wish to participate in the SRS.",null,null,null,null,"Insert a sentence summarising the fee: ","The SRS fee for Year 10  is currently $135.   Innisfail State College  always will ensure that the Student Resource Scheme fee is low and affordable and will use our schools' bulk purchasing power to guarantee a better deal for parents. "]
[]
[]
[]
[]
[null,null,null,null,null,"Cost of the SRS per student:",265]
["What is provided by the Queensland Government?"]
["The Queensland Government supports children’s education by providing funding for instruction (teachers), facilities (school grounds and buildings, internet), and administration (staff to run the school). Funding for schools does not extend to individual student resources such as textbooks, equipment for personal use, and many items used by the student in the classroom.",null,null,null,null,"TRA allocated to student:",130]
[null,null,null,null,null,null,135]
[null,null,null,null,null,"Full SRS fee due:",135]
[]
["The SRS helps parents to source these resources. The school can purchase resources at lower rates due to its bulk buying power. Resources such as textbooks or musical instruments that will be used over a period of time are hired to students to further reduce costs for families. Participating in the SRS also offers a convenient way for parents to source the items that their child needs for school, and ensures that all students have access to the same standard of resources."]
[null,null,null,null,null,"Insert here the name and contact details for the school contact for SRS queries:","Alana Robertson, Business Manager"]
[]
[]
["The types of resources that will be included are: "]
[]
["g Owned by the student – e.g. printing credit, student ID Card – once provided, these items are retained by the student."]
[]
["g Hired to the student for a specific duration of time – e.g. textbooks or musical \n       instruments–these items will need to be returned to the school in reasonable \n       condition at the end of the hire period or if the student leaves the school. "]
[]
[]
["g Used in class – e.g. stationery, timber, material, workbooks – these items will be \n       used in class. Finished products that are created from these resources will \n       generally come home with the student."]
[]
[]
[]
["The Fee"]
[{"$f":"G6","v":"The SRS fee for Year 10  is currently $135.   Innisfail State College  always will ensure that the Student Resource Scheme fee is low and affordable and will use our schools' bulk purchasing power to guarantee a better deal for parents. "}]
[]
[]
[]
["If you are not satisfied that the SRS fee represents good value for money based on the inclusions (over the page), you may choose not to participate in the SRS. If that is the case, please complete a new Participation Agreement Form, indicating that you no longer wish to participate. If you choose not to participate, you will be provided with a detailed list of resources that you will need to provide for the student."]
[]
[]
[]
[]
[]
[]
[]
[]
[]
[]
["The TRA"]
["The Department of Education provides a Textbook and Resource Allowance (TRA) to assist parents with the cost of textbooks and other education resources for eligible Years 7 to 12 students."]
[]
["For those students who are eligible to receive the TRA, the TRA will be applied to reduce the cost of participation as shown in the table below. Thus the SRS invoice you receive will be the full cost of participation in the SRS minus the TRA already held at the school."]
[]
[]
[]
["Please be aware that there may be two lines of charges on your invoice indicating the GST inclusive and GST exclusive fees depending on the resources supplied by the SRS ."]
[]
[]
["Cost Breakdown"]
["The diagrams below reflect how the TRA has been deducted from the SRS fee for eligible students who have opted in to the Curriculum SRS."]
[]
["Cost of SRS","TRA","SRS fee due"]
[235,{"$f":"G13","v":130},135]
[]
[]
["You may opt to pay the SRS by instalments via EFT, Bpoint or Centrepay - you will receive an invoice for the full amount. You will receive a Statement toward the end of each term identifying amount remaining."]
[]
[]
[]
[]
["Financial Difficulty"]
["If you would like to participate, but are experiencing financial difficulties, please contact the school to arrange an appointment to discuss options. Any information that you provide will be confidential."]
[]
[]
["Release of resources"]
["Resources will not be distributed until the full or first payment has been paid to the school. Any unpaid invoices, will be managed according to the department’s Debt Management Procedure and may result in the student being excluded from the scheme and/or from participating in extra-curricular activities until payments are made."]
[]
[]
[]
[]
["Return of hired resources"]
["A repair or replacement cost will be charged to the parent for any items that are damaged or not returned."]
[]
[]
["Contact us"]
["If you have any queries regarding the SRS and its inclusions, please contact and arrange an appointment with:\n                                                             "]
[]
[{"$f":"G18","v":"Alana Robertson, Business Manager"}]
[]
[]
["The Curriculum Student Resource Scheme Inclusions "]
[]
["The Curriculum Student Resource Scheme (SRS) is made up of two components. The components are general items and resources for core and elective subjects. The tables below detail the SRS inclusions for these components."]
[]
[]
[]
["General Items","Resource","Type of Resource","Acquisition cost "," Value (to parent)"]
["General Items","Administration of Student Resource Scheme","Used",0,10]
[null,"Printing Credit","Used",11,11]
[null,"Reprographics to compliment classroom texts","Used",40,40]
["Grand Total",null,null,51,61]
[]
[]
[]
[]
[]
[]
[]
[]
["Subject","Resource","Type of Resource","Acquisition cost ","Value (to parent) "]
["Drama",null,null,94.95,0]
[null,"Consumables and Classroom resources","Used",45,8]
[null,"Subsidy from SRS","Owned",null,-24]
[null,"Textbook - Dramawise","Hired",49.95,16]
["English",null,null,114,0]
[null,"Classroom consumables","Used",9,9]
[null,"Subsidy from SRS","Owned",null,-36]
[null,"Pearson Yr 10 ","Hired",35,12]
[null,"Grammar and Language booklet","Used",20,5]
[null,"Novels","Hired",50,10]
["Music",null,null,21,0]
[null,"Consumables and Classroom resources","Used",21,21]
[null,"Subsidy from SRS","Owned",null,-21]
["Science",null,null,62.68,0]
[null,"Classroom consumables","Used",4,4]
[null,"Subsidy from SRS","Owned",null,-24]
[null,"Science Quest 10","Hired",58.68,20]
["(blank)"]
[null,"(blank)","(blank)"]
["Physical Education",null,null,76,0]
[null,"Consumables and Classroom resources","Used",76,24]
[null,"Subsidy from SRS","Owned",null,-24]
["Mathematics",null,null,70,0]
[null,"Consumables and Classroom resources","Used",5,5]
[null,"Subsidy from SRS","Owned",null,-26]
[null,"Essential Maths Yr 10","Hired",65,21]
["History",null,null,69.95,0]
[null,"Subsidy from SRS","Owned",null,-24]
[null,"Textbook - Nelson Connect with History 10","Hired",69.95,24]
["Science Extension",null,null,58.5,0]
[null,"Consumables and Classroom resources","Used",31,14]
[null,"Subsidy from SRS","Owned",null,-24]
[null,"Textbook - Science 10 Dwyer ","Hired",27.5,10]
["Instrumental Music",null,null,80,80]
[null,"Consumables and Classroom resources","Used",30,30]
[null,"Loan - Brass, woodwind or string instrument","Hired",30,30]
[null,"Loan - percussion equipment","Hired",20,20]
["Cert II in Business",null,null,15,0]
[null,"Consumables and Classroom resources","Used",15,15]
[null,"Subsidy from SRS","Owned",null,-15]
["Cert II in Visual Arts",null,null,50,50]
[null,"Consumables and Classroom resources","Used",50,50]
["Cert II in Dance",null,null,40,0]
[null,"Consumables and Classroom resources","Used",40,7]
[null,"Subsidy from SRS","Owned",null,-7]
["Digital Media &  Technologies",null,null,70,0]
[null,"Consumables and Classroom resources","Used",60,14]
[null,"Subsidy from SRS","Owned",null,-24]
[null,"Adobe Software Licence","Hired",10,10]
["Cert II in Creative Industries",null,null,15,0]
[null,"Consumables and Classroom resources","Used",15,15]
[null,"Subsidy from SRS","Owned",null,-15]
["English Foundation",null,null,55,0]
[null,"Class sets of novels","Hired",30,10]
[null,"Subsidy from SRS","Owned",null,-20]
[null,"Classroom Consumables and Homework booklet","Used",25,10]
["English Acceleration",null,null,150,0]
[null,"Classroom consumables","Used",25,10]
[null,"Subsidy from SRS","Owned",null,-50]
[null,"Grammar and Language booklet","Used",20,5]
[null,"Pearson Text Yr10 and novels","Hired",95,25]
[null,"Homework booklet","Used",10,10]
["Hospitality",null,null,215,100]
[null,"Food costs","Used",175,100]
[null,"Subsidy from SRS","Owned",null,-40]
[null,"Food Consumables including takeaway containers","Used",40,40]
["Industrial Skills Metal",null,null,150,90]
[null,"Subsidy from SRS","Owned",null,-60]
[null,"Workshop Consumables - Student Projects","Used",150,150]
["Mathematics Foundation",null,null,58,0]
[null,"Consumables and Classroom resources","Used",5,5]
[null,"Subsidy from SRS","Owned",null,-22]
[null,"Essential Maths Yr 9","Hired",53,17]
["Mathematics Extension",null,null,59,0]
[null,"Consumables and Classroom resources","Used",5,5]
[null,"Subsidy from SRS","Owned",null,-23]
[null,"Maths for QLD 3 ","Hired",54,18]
["Certificate II in Furniture Making",null,null,190,150]
[null,"Subsidy from SRS","Owned",null,-40]
[null,"Workshop Consumables - Student Projects","Owned",150,150]
[null,"Consumables and resources","Hired",40,40]
["Certificate II in Tourism",null,null,190,150]
[null,"Food costs","Owned",150,150]
[null,"Subsidy from SRS","Owned",null,-40]
[null,"Consumables and resources","Hired",40,40]
["Cert II Information,DIbitalMedia & Tech",null,null,40,0]
[null,"Consumables and Classroom resources","Used",40,40]
[null,"Subsidy from SRS","Owned",null,-40]
["Recreational Studies",null,null,15,0]
[null,"Consumables and Classroom resources","Used",15,15]
[null,"Subsidy from SRS","Owned",null,-15]
["Geography",null,null,80,0]
[null,"Consumables and Classroom resources","Used",15,6]
[null,"Subsidy from SRS","Owned",null,-18]
[null,"Pearson Geography Yr 10 ","Hired",65,12]
["Psychology",null,null,50,0]
[null,"Consumables and Classroom resources","Used",50,24]
[null,"Subsidy from SRS","Used",null,-24]
["Cert II in Rural Operations",null,null,40,0]
[null,"Classroom consumables","Used",40,20]
[null,"Subsidy from SRS","Owned",null,-20]
["Biology & Marine Science",null,null,15,0]
[null,"Classroom consumables","Used",15,15]
[null,"Subsidy from SRS","Owned",null,-15]
["Design",null,null,5,0]
[null,"Classroom consumables","Used",5,5]
[null,"Subsidy from SRS","Owned",null,-5]

{"sheet":"Year 11 Presentation Sheet","index":5,"n_rows":258,"n_cols":7,"rows_kept":258,"cut":false,"hidden":false,"merged":[[92,0,94,4],[75,0,78,4],[81,0,82,4],[85,0,86,4],[87,0,88,4],[80,0,80,1],[32,0,32,4],[71,0,72,4],[33,0,36,4],[34,5,36,9],[37,0,41,4],[48,0,50,4],[61,2,61,3],[62,0,63,0],[62,1,63,1],[62,2,63,3],[59,0,60,4],[51,0,53,4],[55,0,56,4],[65,0,68,4],[23,0,24,4],[25,0,27,4],[24,5,26,9],[28,0,30,4],[29,5,31,9],[11,0,11,4],[18,6,18,10],[21,0,21,4],[12,0,15,4],[16,0,19,4],[3,0,3,1],[5,0,10,4],[5,5,7,5],[0,5,2,10],[5,6,8,10]]}
[null,"Year 11",null,null,null,"Control Panel - Fill in the white boxes  with the appropriate information and then press \"Refresh Tables\" below to populate your letter"]
[]
[]
["Dear Parents/Guardians,",null,null,null,null,"Insert the year that this SRS is offered:",2021]
[]
["This letter includes important information about the fees and inclusions for the SRS . If you have previously opted in to the SRS your participation is assumed for the remainder of your child's enrolment, unless you inform the school otherwise by completing a new participation agreement form. If you are a new parent to the school, this information will assist you in making a decision as to whether you wish to participate in the SRS.",null,null,null,null,"Insert a sentence summarising the fee: ","The SRS fee for Year 11 is currently $135. Innisfail State College always will ensure that the Student Resource Scheme fee is low and affordable and will use our schools' bulk purchasing power to guarantee a better deal for parents. "]
[]
[]
[]
[]
[null,null,null,null,null,"Cost of the SRS per student:",416]
["What is provided by the Queensland Government?"]
["The Queensland Government supports children’s education by providing funding for instruction (teachers), facilities (school grounds and buildings, internet), and administration (staff to run the school). Funding for schools does not extend to individual student resources such as textbooks, equipment for personal use, and many items used by the student in the classroom.",null,null,null,null,"TRA allocated to student:",281]
[]
[null,null,null,null,null,"Full SRS fee due:",135]
[]
["The SRS helps parents to source these resources. The school can purchase resources at lower rates due to its bulk buying power. Resources such as textbooks or musical instruments that will be used over a period of time are hired to students to further reduce costs for families. Participating in the SRS also offers a convenient way for parents to source the items that their child needs for school, and ensures that all students have access to the same standard of resources."]
[]
[null,null,null,null,null,"Insert here the name and contact details for the school contact for SRS queries:","Alana Robertson, Business Manager"]
[]
[]
["The types of resources that will be included are: "]
[]
["g Owned by the student – e.g. printing credit, student ID card  – once provided, these items are retained by the student."]
[]
["g Hired to the student for a specific duration of time – e.g. textbooks or musical \n       instruments–these items will need to be returned to the school in reasonable \n       condition at the end of the hire period or if the student leaves the school. "]
[]
[]
["g Used in class – e.g. stationery, timber, material, workbooks – these items will be \n       used in class. Finished products that are created from these resources will \n       generally come home with the student."]
[]
[]
[]
["The Fee"]
[{"$f":"G6","v":"The SRS fee for Year 11 is currently $135. Innisfail State College always will ensure that the Student Resource Scheme fee is low and affordable and will use our schools' bulk purchasing power to guarantee a better deal for parents. "}]
[]
[]
[]
["If you are not satisfied that the SRS fee represents good value for money based on the inclusions (over the page), you may choose not to participate in the SRS. If that is the case, please complete a new Participation Agreement Form, indicating that you no longer wish to participate. If you choose not to participate, you will be provided with a detailed list of resources that you will need to provide for the student."]
[]
[]
[]
[]
[]
[]
[]
[]
[]
["The TRA"]
["The Department of Education provides a Textbook and Resource Allowance (TRA) to assist parents with the cost of textbooks and other education resources for eligible Years 7 to 12 students. "]
[]
[]
["For those students who are eligible to receive the TRA, the TRA will be applied to reduce the cost of participation as shown in the table below. Thus the SRS invoice you receive will be the full cost of participation in the SRS minus the TRA already held at the school."]
[]
[]
[]
["Please be aware that there may be two lines of charges on your invoice indicating the GST inclusive and GST exclusive fees depending on the resources supplied by the SRS ."]
[]
[]
["Cost Breakdown"]
["The diagrams below reflect how the TRA has been deducted from the SRS fee for eligible students who have opted in to the Curriculum SRS."]
[]
["Cost of SRS","TRA","SRS fee due"]
[441,{"$f":"G13","v":281},135]
[]
[]
["You may opt to pay the SRS by instalments via EFT, Bpoint or Centrepay - you will receive an invoice for the full amount. You will receive a Statement toward the end of each term identifying amount remaining."]
[]
[]
[]
[]
["Financial Difficulty"]
["If you would like to participate, but are experiencing financial difficulties, please contact the school to arrange an appointment to discuss options. Any information that you provide will be confidential."]
[]
[]
["Release of resources"]
["Resources will not be distributed until the full or first payment has been paid to the school. Any unpaid invoices, will be managed according to the department’s Debt Management Procedure and may result in the student being excluded from the scheme and/or from participating in extra-curricular activities until payments are made."]
[]
[]
[]
[]
["Return of hired resources"]
["A repair or replacement cost will be charged to the parent for any items that are damaged or not returned."]
[]
[]
["Contact us"]
["If you have any queries regarding the SRS and its inclusions, please contact and arrange an appointment with:\n                                                             "]
[]
[{"$f":"G19","v":"Alana Robertson, Business Manager"}]
[]
[]
["The Curriculum Student Resource Scheme Inclusions "]
[]
["The Curriculum Student Resource Scheme (SRS) is made up of two components. The components are general items and resources for core and elective subjects. The tables below detail the SRS inclusions for these components."]
[]
[]
[]
["General Items","Resource","Type of Resource","Acquisition cost ","Value (to parent) "]
["General Items"]
[null,"Administration of Student Resource Scheme","Used",0,10]
[null,"Printing Credit","Used",20,20]
[null,"Reprographics to complement classroom texts","Used",40,40]
["Grand Total",null,null,60,70]
[]
[]
[]
[]
[]
[]
[]
[]
[" Subject","Resource","Type of Resource","Acquisition cost ","Value (to parent) "]
["Drama",null,null,144.94999999999999,0]
[null,"Subsidy from SRS","Owned",null,-75]
[null," Plays/Scripts","Hired",20,25]
[null,"Dramawise Textbook","Hired",74.95,25]
[null,"Consumables for performances","Used",35,10]
[null,"Reprographics to complement classroom texts","Used",15,15]
["English",null,null,165,0]
[null,"Novels and Plays (at least 2 per year) ","Hired",60,15]
[null,"Subsidy from SRS","Owned",null,-60]
[null,"Textbooks Cambridge Yr 11 Units 1 & 2 , Film, DVDs","Hired",90,30]
[null,"Reprographics to complement classroom texts ","Owned",15,15]
["Music",null,null,21,0]
[null,"Subsidy from SRS","Owned",null,-21]
[null,"Consumables and Classroom resources","Used",21,21]
["(blank)"]
[null,"(blank)","(blank)"]
["Essential English",null,null,165,0]
[null,"Novels and Plays (at least 2 per year) ","Hired",60,15]
[null,"Subsidy from SRS","Used",null,-60]
[null,"Textbooks Cambridge Yr 11 Units 1 & 2 , Film, DVDs","Hired",90,30]
[null,"Reprographics to complement classroom texts","Owned",15,15]
["General Maths",null,null,120,0]
[null,"Consumables and Resources","Used",10,10]
[null,"Subsidy from SRS","Owned",null,-60]
[null,"Cambridge General Maths 1 & 2","Hired",80,20]
[null,"Reprographics to complement classroom texts","Owned",30,30]
["Essential Maths",null,null,120,0]
[null,"Consumables and Resources","Used",10,10]
[null,"Subsidy from SRS","Owned",null,-60]
[null,"Cambridge Essential Maths 1&2","Hired",80,20]
[null,"Reprographics to complement classroom texts","Owned",30,30]
["Mathematical Methods",null,null,99.95,0]
[null,"Consumables and Resources","Used",10,10]
[null,"Subsidy from SRS","Owned",null,-60]
[null,"Cambridge Maths Methods 1&2 ","Hired",59.95,20]
[null,"Reprographics to complement classroom texts","Owned",30,30]
["Chemistry",null,null,109.4,0]
[null,"Subsidy from SRS","Owned",null,-50]
[null,"Oxford Chemistry  Units 1&2","Hired",89.4,30]
[null,"Reprographics to complement classroom texts","Owned",20,20]
["Sport & Recreation",null,null,161,0]
[null,"Consumables and Resources","Used",58,10]
[null,"Qld Senior Physical Education Textbook (Macmillian)","Hired",79,26]
[null,"Subsidy from SRS","Owned",null,-60]
[null,"Reprographics to complement classroom texts","Owned",24,24]
["Social and Community Studies",null,null,85,0]
[null,"Consumables and Resources","Used",30,5]
[null,"Subsidy from SRS","Owned",null,-60]
[null,"Classroom reference materials","Owned",55,55]
["Visual Arts in Practice",null,null,70,45]
[null,"Consumables and Resources","Used",35,35]
[null,"Subsidy from SRS","Owned",null,-25]
[null,"Visual Diary","Owned",10,10]
[null,"Reprographics to complement classroom texts","Owned",25,25]
["Early Childhood Studies",null,null,10,0]
[null,"Consumables and Resources","Used",10,10]
[null,"Subsidy from SRS","Owned",null,-10]
["Engineering Skills",null,null,145,130]
[null,"Subsidy from SRS ","Owned",null,-15]
[null,"Workshop Consumables - Student Projects","Owned",130,130]
[null,"Reprographics to complement classroom texts/booklets","Used",15,15]
["Biology",null,null,124,0]
[null,"Consumables and Resources","Used",55,25]
[null,"Reprographics","Owned",18,18]
[null,"Subsidy fom SRS","Owned",null,-60]
[null,"Oxford Biology  Unitsd 1 & 2","Hired",51,17]
["Physics",null,null,124,0]
[null,"Consumables and Resources","Used",55,25]
[null,"Reprographics","Owned",18,18]
[null,"Subsidy fom SRS","Owned",null,-60]
[null,"Oxford Physics 1&2 ","Hired",51,17]
["Physical Education",null,null,114,0]
[null,"Subsidy from SRS","Owned",null,-60]
[null,"Textbook - Macmillian Physical Education QCE Units 1 &  2","Hired",79,25]
[null,"Reprographics to complement classroom texts","Owned",35,35]
["Instrumental Music",null,null,80,80]
[null,"Consumables and Classroom resources","Used",30,30]
[null,"Loan - Brass, woodwind or string instrument","Hired",30,30]
[null,"Loan - percussion equipment","Hired",20,20]
["Accounting",null,null,115,0]
[null,"Subsidy from SRS","Owned",null,-55]
[null,"Text - Accounting Concepts & Applications","Hired",75,15]
[null,"Reprographics to complement classroom text","Owned",40,40]
["Agricultural Practices",null,null,7.75,0]
[null,"Subsidy from SRS","Owned",null,-7.75]
[null,"Consumables and Classroom resources","Used",7.75,7.75]
["Aquatic Practices",null,null,6,0]
[null,"Consumables and Resources","Used",6,6]
[null,"Subsidy from SRS","Owned",null,-6]
["Cert II in Kitchen Operations",null,null,200,150]
[null,"Food supplies","Used",150,150]
[null,"Subsidy for SRS","Owned",null,-50]
[null,"Food Consumables including takeaway containers","Owned",40,40]
[null,"Reprographics to complement classroom texts","Owned",10,10]
["Cert II inSkills for Work & Vocational",null,null,0,0]
[null,"This course is delivered through an external Provider -  Enrolment into this course is subject to all outstanding fees being paid in full or a payment plan in place.The course fee must be paid by 01st April.","Owned",0,0]
["Certificate III Fitness (Sport & Rec) ",null,null,330,330]
[null,"Certficiate for Years 11 & 12 - This course is delivered through an external Provider -  Enrolment into this course is subject to all outstanding fees being paid in full or a payment plan in place.The course fee must be paid by 01st April.","Owned",330,330]
["Dance in Practice",null,null,10,0]
[null,"Consumables and Resources","Used",10,10]
[null,"Subsidy from SRS","Owned",null,-10]
["Design",null,null,10,0]
[null,"Subsidy from SRS ","Owned",null,-10]
[null,"Consumables and Resources","Used",10,10]
["Digital Solutions",null,null,70,0]
[null,"Subsidy from SRS","Owned",null,-24]
[null,"Adobe Software Licence","Hired",10,10]
[null,"Consumables and Classroom resources","Used",60,14]
["Drama in Practice",null,null,10,0]
[null,"Consumables and Resources","Used",10,10]
[null,"Subsidy from SRS","Owned",null,-10]
["Furnishing Skills",null,null,165,150]
[null,"Subsidy from SRS ","Owned",null,-15]
[null,"Workshop Consumables - Student Projects","Owned",150,150]
[null,"Reprographics to complement classroom texts/booklets","Used",15,15]
["Geography",null,null,107,0]
[null,"Textbooks, Film, DVDs","Hired",92,18]
[null,"Subsidy from SRS","Owned",null,-33]
[null,"Reprographics to complement classroom texts","Used",15,15]
["Health Supp & Comm Services",null,null,399,399]
[null,"Dual Certificate Course Cert II - This course is delivered through an external Provider -  Enrolment into this course is subject to all outstanding fees being paid in full or a payment plan in place.The course fee must be paid by 01st April.","Owned",399,399]
["Literature",null,null,165,0]
[null,"Novels and Plays (at least 2 per year) ","Hired",60,15]
[null,"Subsidy from SRS","Owned",null,-60]
[null,"Textbooks Cambridge Yr 11 Units 1 & 2 , Film, DVDs","Hired",90,30]
[null,"Reprographics to complement classroom texts ","Owned",15,15]
["Marine Science",null,null,50,0]
[null,"Marine Education Workbook","Hired",50,25]
[null,"Subsidey from SRS ","Owned",null,-25]
["Music in Practice",null,null,21,0]
[null,"Subsidy from SRS","Owned",null,-21]
[null,"Consumables and Classroom resources","Used",21,21]
["Psychology",null,null,123,25]
[null,"Subsidy from SRS","Used",null,-24]
[null,"Consumables and Classroom resources","Used",50,24]
[null,"Textbook - Oxford Psychology Units 1 and 2 ","Hired",73,25]
["Specialist  Maths",null,null,120,0]
[null,"Consumables and Resources","Used",10,10]
[null,"Subsidy from SRS","Owned",null,-60]
[null,"Cambridge General Maths 1 & 2","Hired",80,20]
[null,"Reprographics to complement classroom texts","Owned",30,30]
["Visual Arts ",null,null,10,-50]
[null,"Subsidy from SRS","Owned",null,-60]
[null,"Visual Diary","Owned",10,10]
["Visual Arts",null,null,190,85]
[null,"Consumables and Resources","Used",150,45]
[null,"Reprographics to complement classroom texts","Owned",40,40]

{"sheet":"Year 12 Presentation Sheet","index":6,"n_rows":243,"n_cols":7,"rows_kept":243,"cut":false,"hidden":false,"merged":[[98,0,100,4],[75,0,78,4],[81,0,82,4],[85,0,86,4],[87,0,88,4],[80,0,80,1],[32,0,32,4],[71,0,72,4],[33,0,36,4],[33,5,35,9],[37,0,41,4],[48,0,50,4],[51,0,53,4],[61,2,61,3],[62,0,63,0],[62,1,63,1],[62,2,63,3],[59,0,60,4],[55,0,56,4],[65,0,68,4],[23,0,24,4],[25,0,27,4],[23,5,25,9],[28,0,30,4],[28,5,30,9],[11,0,11,4],[17,6,17,10],[21,0,21,4],[12,0,15,4],[16,0,19,4],[3,0,3,1],[5,0,10,4],[5,5,7,5],[0,5,2,10],[5,6,8,10]]}
[null,"Year 12",null,null,null,"Control Panel - Fill in the white boxes  with the appropriate information and then press \"Refresh Tables\" below to populate your letter"]
[]
[]
["Dear Parents/Guardians,",null,null,null,null,"Insert the year that this SRS is offered:",2021]
[]
["This letter includes important information about the fees and inclusions for the SRS . If you have previously opted in to the SRS your participation is assumed for the remainder of your child's enrolment, unless you inform the school otherwise by completing a new participation agreement form. If you are a new parent to the school, this information will assist you in making a decision as to whether you wish to participate in the SRS.",null,null,null,null,"Insert a sentence summarising the fee: ","The SRS fee for Year 12 is currently $135. Innisfail State College always will ensure that the Student Resource Scheme fee is low and affordable and will use our schools' bulk purchasing power to guarantee a better deal for parents. "]
[]
[]
[]
[]
[null,null,null,null,null,"Cost of the SRS per student:",416]
["What is provided by the Queensland Government ?"]
["The Queensland Government supports children’s education by providing funding for instruction (teachers), facilities (school grounds and buildings, internet), and administration (staff to run the school). Funding for schools does not extend to individual student resources such as textbooks, equipment for personal use, and many items used by the student in the classroom.",null,null,null,null,"TRA allocated to student:",281]
[]
[null,null,null,null,null,"Full SRS fee due:",135]
[]
["The SRS helps parents to source these resources. The school can purchase resources at lower rates due to its bulk buying power. Resources such as textbooks or musical instruments that will be used over a period of time are hired to students to further reduce costs for families. Participating in the SRS also offers a convenient way for parents to source the items that their child needs for school, and ensures that all students have access to the same standard of resources."]
[null,null,null,null,null,"Insert here the name and contact details for the school contact for SRS queries:","Alana Robertson, Business Manager"]
[]
[]
[]
["The types of resources that will be included are: "]
[]
["g Owned by the student – e.g. printing credit, student ID Card – once provided, these items are retained by the student  "]
[]
["g Hired to the student for a specific duration of time – e.g. textbooks or musical \n       instruments–these items will need to be returned to the school in reasonable \n       condition at the end of the hire period or if the student leaves the school. "]
[]
[]
["g Used in class – e.g. stationery, timber, material, workbooks – these items will be \n       used in class. Finished products that are created from these resources will \n       generally come home with the student."]
[]
[]
[]
["The Fee"]
[{"$f":"G6","v":"The SRS fee for Year 12 is currently $135. Innisfail State College always will ensure that the Student Resource Scheme fee is low and affordable and will use our schools' bulk purchasing power to guarantee a better deal for parents. "}]
[]
[]
[]
["If you are not satisfied that the SRS fee represents good value for money based on the inclusions (over the page), you may choose not to participate in the SRS. If that is the case, please complete a new Participation Agreement Form, indicating that you no longer wish to participate. If you choose not to participate, you will be provided with a detailed list of resources that you will need to provide for the student."]
[]
[]
[]
[]
[]
[]
[]
[]
[]
["The TRA"]
["The Department of Education provides a Textbook and Resource Allowance (TRA) to assist parents with the cost of textbooks and other education resources for eligible Years 7 to 12 students. "]
[]
[]
["For those students who are eligible to receive the TRA, the TRA will be applied to reduce the cost of participation as shown in the table below. Thus the SRS invoice you receive will be the full cost of participation in the SRS minus the TRA already held at the school."]
[]
[]
[]
["Please be aware that there may be two lines of charges on your invoice indicating the GST inclusive and GST exclusive fees depending on the resources supplied by the SRS ."]
[]
[]
["Cost Breakdown"]
["The diagrams below reflect how the TRA has been deducted from the SRS fee for eligible students who have opted in to the Curriculum SRS."]
[]
["Cost of SRS","TRA","SRS invoice"]
[416,{"$f":"G13","v":281},135]
[]
[]
["You may opt to pay the SRS by instalments via EFT, Bpoint or Centrepay - you will receive an invoice for the full amount. You will receive a Statement toward the end of each term identifying amount remaining."]
[]
[]
[]
[]
["Financial Difficulty"]
["If you would like to participate, but are experiencing financial difficulties, please contact the school to arrange an appointment to discuss options. Any information that you provide will be confidential."]
[]
[]
["Release of resources"]
["Resources will not be distributed until the full or first payment has been paid to the school. Any unpaid invoices, will be managed according to the department’s Debt Management Procedure and may result in the student being excluded from the scheme and/or from participating in extra-curricular activities until payments are made."]
[]
[]
[]
[]
["Return of hired resources"]
["A repair or replacement cost will be charged to the parent for any items that are damaged or not returned."]
[]
[]
["Contact us"]
["If you have any queries regarding the SRS and its inclusions, please contact and arrange an appointment with:\n                                                             "]
[]
[{"$f":"G18","v":"Alana Robertson, Business Manager"}]
[]
[]
[]
[]
[]
[]
[]
[]
["The Curriculum Student Resource Scheme Inclusions "]
[]
["The Curriculum Student Resource Scheme (SRS) is made up of two components. The components are general items and resources for core and elective subjects. The tables below detail the SRS inclusions for these components."]
[]
[]
[]
["General Items","Resource","Type of Resource"," Acquisition cost","Value (to parent) "]
["General Items"]
[null,"Administration of Student Resource Scheme","Used",0,10]
[null,"Printing Credit","Used",20,20]
[null,"Reprographics to complement classroom texts","Used",40,40]
["(blank)"]
[null,"(blank)","(blank)"]
["Grand Total",null,null,60,70]
[]
[]
[]
[]
[]
[]
["Subject","Resource","Type of Resource","Acquisition cost "," Value (to parent)"]
["English"]
[null,"Subsidy from SRS","Owned",null,-60]
[null,"Novels and Plays (at least 2 per year) ","Hired",60,15]
[null,"Textbooks Cambridge Yr 12 Units 3 & 4 , Film, DVDs","Hired",90,30]
[null,"Reprographics to complement classroom texts ","Owned",15,15]
["Music"]
[null,"Subsidy from SRS","Owned",null,-21]
[null,"Consumables and Classroom resources","Used",21,-21]
["Biology"]
[null,"Consumables and Resources","Used",55,25]
[null,"Reprographics","Owned",18,18]
[null,"Subsidy fom SRS","Owned",null,-60]
[null,"Oxfords Yr 12   Units 3 & 4 ","Hired",51,17]
["Chemistry"]
[null,"Subsidy from SRS","Owned",null,-50]
[null,"Oxford Chemistry  Units 1&2","Hired",89.4,30]
[null,"Reprographics to complement classroom texts","Owned",20,20]
["Early Childhood Studies"]
[null,"Consumables and Resources","Used",10,10]
[null,"Subsidy from SRS","Owned",null,-10]
["Engineering Skills"]
[null,"Workshop Consumables - Student Projects","Owned",150,150]
[null,"Subsidy from SRS ","Owned",null,-15]
[null,"Reprographics to complement classroom texts/booklets","Used",15,15]
["Essential English"]
[null,"Subsidy from SRS","Used",null,-60]
[null,"Novels and Plays (at least 2 per year) ","Hired",60,15]
[null,"Textbooks Cambridge Yr 12 Units 3 & 4 , Film, DVDs","Hired",90,30]
[null,"Reprographics to complement classroom texts ","Owned",15,15]
["Essential Maths"]
[null,"Consumables and Resources","Used",10,10]
[null,"Subsidy from SRS","Owned",null,-60]
[null,"Cambridge Essential Maths 1&2","Hired",80,20]
[null,"Reprographics to complement classroom texts","Owned",30,30]
["General Maths"]
[null,"Consumables and Resources","Used",10,10]
[null,"Subsidy from SRS","Owned",null,-60]
[null,"Cambridge General Maths 1 & 2","Hired",80,20]
[null,"Reprographics to complement classroom texts","Owned",30,30]
["Instrumental Music"]
[null,"Consumables and Classroom resources","Used",30,30]
[null,"Loan - Brass, woodwind or string instrument","Hired",30,30]
[null,"Loan - percussion equipment","Hired",20,20]
["Mathematical Methods"]
[null,"Consumables and Resources","Used",10,10]
[null,"Subsidy from SRS","Owned",null,-60]
[null,"Cambridge Maths Methods 1&2 ","Hired",59.95,20]
[null,"Reprographics to complement classroom texts","Owned",30,30]
["Modern History"]
[null,"Subsidy from SRS ","Owned",null,-60]
[null,"Reprographics to complement classroom texts","Used",10,10]
[null,"Texts, Film, DVDs","Hired",150,50]
["Physical Education"]
[null,"Subsidy from SRS","Owned",null,-60]
[null,"Textbook - Macmillian Physical Education QCE Units 1 &  2","Hired",79,25]
[null,"Reprographics to complement classroom texts","Owned",35,35]
["Physics"]
[null,"Consumables and Resources","Used",55,25]
[null,"Reprographics","Owned",18,18]
[null,"Subsidy fom SRS","Owned",null,-60]
[null,"Oxford Physics 1&2 ","Hired",51,17]
["Social and Community Studies"]
[null,"Consumables and Resources","Used",30,5]
[null,"Subsidy from SRS","Owned",null,-60]
[null,"Classroom reference materials","Owned",55,55]
["Sport & Recreation"]
[null,"Consumables and Resources","Used",58,10]
[null,"Subsidy from SRS","Owned",null,-60]
[null,"Qld Senior Physical Education Textbook (Macmillian)","Hired",79,26]
[null,"Reprographics to complement classroom texts","Owned",24,24]
["Visual Arts in Practice"]
[null,"Visual Diary","Owned",10,10]
[null,"Consumables and Resources","Used",150,45]
[null,"Subsidy from SRS","Owned",null,-60]
[null,"Reprographics to complement classroom texts","Owned",40,40]
["Accounting"]
[null,"Subsidy from SRS","Owned",null,-55]
[null,"Text - Accounting Concepts & Applications","Hired",75,15]
[null,"Reprographics to complement classroom text","Owned",40,40]
["Agricultural Practices"]
[null,"Subsidy from SRS","Owned",null,-7.75]
[null,"Consumables and Classroom resources","Used",7.75,7.75]
["Aquatic Practices"]
[null,"Consumables and Resources","Used",6,6]
[null,"Subsidy from SRS","Owned",null,-6]
["Cert II inSkills for Work & Vocational"]
[null,"Certificate II provided internally by staff - no cost","Owned",0,0]
["Certificate III Fitness (Sport & Rec) "]
[null,"Certficiate for Years 11 & 12 - This course is delivered through an external Provider -  Enrolment into this course is subject to all outstanding fees being paid in full or a payment plan in place.The course fee must be paid by 01st April.","Owned",330,330]
["Design"]
[null,"Consumables and Resources","Used",10,10]
[null,"Subsidy from SRS ","Owned",null,-10]
["Digital Solutions"]
[null,"Adobe Software Licence","Hired",10,10]
[null,"Subsidy from SRS","Owned",null,-24]
[null,"Consumables and Classroom resources","Used",60,14]
["Furnishing Skills"]
[null,"Workshop Consumables - Student Projects","Owned",150,150]
[null,"Subsidy from SRS ","Owned",null,-15]
[null,"Reprographics to complement classroom texts/booklets","Used",15,15]
["Geography"]
[null,"Subsidy from SRS","Owned",null,-33]
[null,"Textbooks, Film, DVDs","Hired",92,18]
[null,"Reprographics to complement classroom texts","Used",15,15]
["Health Supp & Comm Services"]
[null,"Dual Certificate Course Cert II- This course is delivered through an external Provider -  Enrolment into this course is subject to all outstanding fees being paid in full or a payment plan in place.The course fee must be paid by 01st April.","Owned",399,399]
["Literature"]
[null,"Subsidy from SRS","Owned",null,-60]
[null,"Novels and Plays (at least 2 per year) ","Hired",60,15]
[null,"Textbooks Cambridge Yr 12 Units 3 & 4 , Film, DVDs","Hired",90,30]
[null,"Reprographics to complement classroom texts ","Owned",15,15]
["Marine Science"]
[null,"Subsidy from SRS ","Owned",null,-25]
[null,"Marine Education Workbook","Hired",50,25]
["Music in Practice"]
[null,"Subsidy from SRS","Owned",null,-21]
[null,"Consumables and Classroom resources","Used",21,-21]
["Psychology"]
[null,"Subsidy from SRS","Used",null,-24]
[null,"Consumables and Classroom resources","Used",50,24]
[null,"Oxford Psycology - Units 3 and 4 ","Hired",73,25]
["Specialist  Maths"]
[null,"Consumables and Resources","Used",10,10]
[null,"Subsidy from SRS","Owned",null,-60]
[null,"Cambridge General Maths 1 & 2","Hired",80,20]
[null,"Reprographics to complement classroom texts","Owned",30,30]